Cogmind - Beta 9.6 @@@ ROGUE MODE // 2020.04.16 @ 04:17:58 // Winter2019/RPGLIKE Player: IAMCRAIG Result: Heading to fleet! Performance ------------- Evolutions (9) 4500 Regions Visited (29) 5800 Robots Destroyed (902) 4510 Value Destroyed (48608) 48608 Prototype IDs (129) 2580 Alien Tech Used (3) 600 Bonus (62724) 62724 TOTAL SCORE: 129322 Bonus ------- Triggered High Security 1000 High Alert Combat Kills 24044 Follower Combat Kills 3086 Network Hubs Disabled 200 Aligned with FarCom 300 Met Imprinter 300 Met Warlord at Base 500 MAIN.C Attacked Warlord 500 Warlord Defense Kill 1930 Met R17 at Cetus 500 Found Hidden Lab 3000 Used Core Reset Matrix 3000 Scanned by Researcher 500 Pursued by Intercept 1000 Destroyed MAIN.C Guards 500 Met MAIN.C 5000 Destroyed MAIN.C Shell 5000 Destroyed MAIN.C 10000 Win 3000 Friendly Fire -636 Cogmind --------- Core Integrity 2078/2100 Matter 300/300 Energy 370/380 System Corruption 0% Temperature Cool (10) Movement Hovering (44) Location To Fleet Rendezvous Parts ------- > --- POWER (2) -------- Zero-point Reactor Zero-point Reactor > --- PROPULSION (5) --- Combat Linear Gravjet Combat Linear Gravjet Combat Linear Gravjet Combat Linear Gravjet Combat Linear Gravjet > --- UTILITY (13) ----- Experimental Power Amplifier Experimental Melee Analysis Suite Experimental Core Analyzer Experimental Armor Integrity Analyzer Microactuators Nanoactuators Advanced Actuator Array Advanced Reaction Control System Heavy Regenerative Plating Experimental Focal Shield Thermal Barrier AEGIS Remote Shield > --- WEAPON (6) ------- Enhanced Nova Cannon Shock Maul Ionic Axe Molecular Scythe Longsword +1 Enhanced Force Lance > --- INVENTORY (5) ---- Protomatter-73 Experimental Energy Well (1000) Improved Stasis Canceller Improved System Restoration Module Shock Maul Peak State ------------ > --- POWER ------------ Vortex Chain Reactor > --- PROPULSION ------- Combat Linear Gravjet Combat Linear Gravjet Combat Linear Gravjet Combat Linear Gravjet Combat Linear Gravjet > --- UTILITY ---------- Experimental Power Amplifier Experimental Energy Well Experimental Optical Array Experimental Melee Analysis Suite Experimental Core Analyzer Experimental Armor Integrity Analyzer Microactuators Nanoactuators Advanced Actuator Array Advanced Reaction Control System Centrium Light Armor Plating Experimental Focal Shield Advanced Force Field > --- WEAPON ----------- Containment Facilitator Ionic Axe Molecular Scythe Longsword +1 Enhanced Force Lance > --- INVENTORY -------- Long-range Terrain Scanner Improved Stasis Canceller Improved System Restoration Module Shock Maul Shock Maul [Rating: 225] Favorites ----------- Power Fission Core Engine Cooled Deuterium Engine Power Core Fission Core Reactor Vortex Chain Reactor Propulsion Combat Airjet Treads Light Treads Leg Advanced Myomer Leg Wheel Wheel Hover Unit Combat Airjet Flight Unit Cooled Cesium-ion Thruster Utility Microactuators Device Microactuators Storage High-capacity Battery Processor Advanced Melee Analysis Suite Hackware Deep Network Scanner Protection Improved Powered Armor Weapon Longsword +1 Energy Gun Shock Rifle Energy Cannon Light EM Pulse Cannon Ballistic Gun Light Assault Rifle Ballistic Cannon Heavy Autocannon Launcher Mini Grenade Launcher Special Weapon Advanced Remote Datajack Impact Weapon Makeshift Hammer Slashing Weapon Longsword +1 Piercing Weapon Enhanced Force Lance Build | -11 -10 -10 -9 -9 -9 -8 -8 -7 -7 -7 -7 -6 -6 -6 -6 -6 -6 -5 -5 -5 -5 -4 -4 -4 -4 -3 -2 -1 -1 ------- Run | Scr Mat Min Mat Min Exi Min Mat Fac Low Low Zio Pro Fac Ext Cet Arc Hub Fac Upp Upp War Pro Fac Arm Lab Res Res Acc Com Slots Evolved 21 | 3 3 2 5 . . 1 3 1 . . . 1 1 . . . . 1 . . . . . . . . . . . Power 1 | . 1 . . . . . . . . . . . . . . . . . . . . . . . . . . . . Propulsion 4 | 1 . 1 . . . . 2 . . . . . . . . . . . . . . . . . . . . . . Utility 11 | 1 2 1 2 . . 1 1 1 . . . . 1 . . . . 1 . . . . . . . . . . . Weapon 5 | 1 . . 3 . . . . . . . . 1 . . . . . . . . . . . . . . . . . Parts Attached 512 | 10 13 8 21 2 1 1 30 19 2 1 2 1 25 3 12 . 3 16 3 7 31 9 42 36 31 43 6 . 134 Power 32 | 2 2 1 2 . . . 1 1 . . . . 2 1 7 . 1 1 . . 1 . 2 . 2 . . . 6 Engine 6 | 2 . . . . . . . 1 . . . . 1 . 2 . . . . . . . . . . . . . . Core 6 | . 2 1 2 . . . 1 . . . . . . . . . . . . . . . . . . . . . . Reactor 20 | . . . . . . . . . . . . . 1 1 5 . 1 1 . . 1 . 2 . 2 . . . 6 Propulsion 86 | 3 . 4 3 . . . 10 3 . . . . 7 . . . . 1 1 2 4 3 6 15 3 7 5 . 9 Treads 1 | 1 . . . . . . . . . . . . . . . . . . . . . . . . . . . . . Leg 3 | . . . . . . . . . . . . . . . . . . . . . 1 . 1 1 . . . . . Wheel 3 | 2 . 1 . . . . . . . . . . . . . . . . . . . . . . . . . . . Hover 75 | . . 3 2 . . . 10 3 . . . . 6 . . . . 1 1 1 3 3 5 14 3 7 5 . 8 Flight 4 | . . . 1 . . . . . . . . . 1 . . . . . . 1 . . . . . . . . 1 Utility 260 | 2 8 2 6 1 . 1 8 6 1 . . . 9 . 3 . . 11 2 5 19 4 22 18 20 31 1 . 80 Device 176 | 1 3 . 3 . . . 4 5 . . . . 5 . . . . 6 . 3 10 3 19 14 14 28 1 . 57 Storage 7 | . . . 1 . . . . . . . . . . . . . . . . 1 1 . . . . 1 . . 3 Processor 22 | 1 . 1 1 . . 1 . . . . . . 3 . . . . 1 1 1 3 . 2 1 . 1 . . 5 Hackware 6 | . . . . . . . 1 . . . . . . . . . . . . . . . 1 . 2 1 . . 1 Protection 49 | . 5 1 1 1 . . 3 1 1 . . . 1 . 3 . . 4 1 . 5 1 . 3 4 . . . 14 Artifact . | . . . . . . . . . . . . . . . . . . . . . . . . . . . . . . Weapon 134 | 3 3 1 10 1 1 . 11 9 1 1 2 1 7 2 2 . 2 3 . . 7 2 12 3 6 5 . . 39 Energy Gun 23 | 1 1 . 5 1 . . 5 1 . . . . . . . . . . . . 1 . 1 . 2 1 . . 4 Energy Cannon 10 | . 1 1 . . . . . . . . . . 3 . . . . . . . . . 1 . . . . . 4 Ballistic Gun 8 | 2 1 . 1 . . . . . . . . . . . . . 1 . . . 1 . . . . 1 . . 1 Ballistic Cannon 1 | . . . . . . . . . . . . . . . . . . . . . 1 . . . . . . . . Launcher 7 | . . . 1 . . . . 1 . . . . 1 . . . . . . . . 1 . 1 . . . . 2 Special Weapon 8 | . . . . . . . . . . . . . . . 1 . . . . . . . . . 1 . . . 6 Impact Weapon 46 | . . . . . . . . 6 . . 2 1 3 . 1 . 1 1 . . 4 1 6 1 2 3 . . 14 Slashing Weapon 24 | . . . 3 . 1 . 6 1 1 1 . . . 2 . . . 1 . . . . 2 1 1 . . . 4 Piercing Weapon 7 | . . . . . . . . . . . . . . . . . . 1 . . . . 2 . . . . . 4 Special Melee Weapon . | . . . . . . . . . . . . . . . . . . . . . . . . . . . . . . Unidentified Prototypes 72 | . . . 3 . . . 2 3 . . . . 8 . 1 . . 2 . . 11 1 8 1 10 6 . . 16 Parts Lost 8 | . . . 1 . . . . . . . . . . . . . . . . . . . 2 . . . . . 5 Power 1 | . . . . . . . . . . . . . . . . . . . . . . . 1 . . . . . . Propulsion 1 | . . . . . . . . . . . . . . . . . . . . . . . . . . . . . 1 Utility 5 | . . . 1 . . . . . . . . . . . . . . . . . . . . . . . . . 4 Weapon 1 | . . . . . . . . . . . . . . . . . . . . . . . 1 . . . . . . Highest Loss Streak 2 | . . . 1 . . . . . . . . . . . . . . . . . . . 1 . . . . . 2 Average Slot Usage (%) 96 | . 97 95 95 100 100 97 98 94 94 95 95 95 94 96 96 96 95 97 100 100 96 96 95 95 93 95 96 96 95 Engine 1 | . 2 . . . . . . 3 4 4 4 4 4 4 3 4 3 . . . . . . . . . . . . Core 3 | . 8 14 12 11 11 11 9 4 4 4 4 4 4 2 . . . . . . . . . . . . . . . Reactor 2 | . . . . . . . . . . . . . . 1 4 4 4 7 7 7 4 3 2 3 3 3 3 3 4 Hover 18 | . . 5 18 17 17 16 18 22 22 22 22 21 20 20 20 20 20 19 19 19 19 19 18 19 18 19 19 19 19 Device 27 | . 17 18 17 17 17 16 23 31 31 31 31 30 29 28 28 28 28 29 30 29 29 28 28 30 31 31 34 34 30 Processor 9 | . 11 14 12 11 11 13 9 1 . . . . 5 12 12 12 12 11 11 11 11 15 12 11 11 11 11 11 11 Protection 5 | . 11 9 6 5 5 5 4 4 8 9 9 8 4 4 4 4 4 4 7 7 4 4 7 6 3 3 3 3 3 Energy Gun 2 | . 9 . 16 14 17 16 9 . . . . . . . . . . . . . . . . . . . . . . Impact Weapon 8 | . . . . . . . . 9 13 13 17 20 20 16 12 12 11 11 11 11 10 10 8 6 7 6 7 7 6 Slashing Weapon 8 | . . . 1 13 11 11 14 12 8 9 4 4 4 7 12 12 12 8 7 7 7 7 9 10 10 11 11 11 10 Piercing Weapon 1 | . . . . . . . . . . . . . . . . . . 1 3 3 3 3 3 3 3 3 3 3 2 Naked Turns . | . . . . . . . . . . . . . . . . . . . . . . . . . . . . . . Heaviest Build 140 | 8 17 29 38 43 44 44 56 72 79 79 79 81 81 78 95 86 88 98 98 107 108 101 113 117 113 110 110 108 140 Greatest Support 175 | 20 20 66 66 52 52 52 66 93 93 93 93 93 100 90 90 90 90 99 99 99 109 120 142 143 175 175 173 173 175 Greatest Overweight (x) 5 | . 1 2 . . . . 1 . . 1 . . . 1 1 . . . . 1 1 . 3 1 . 5 . . . Average Overweight (x) . | . . . . . . . . . . . . . . . . . . . . . . . . . . . . . . Largest Inventory Capacity 5 | . 2 2 2 2 2 2 2 2 2 2 2 2 3 3 3 3 3 3 3 4 4 4 5 5 5 5 5 5 5 Average Capacity 3 | . 1 2 2 2 2 2 2 2 2 2 2 2 2 3 3 3 3 3 3 3 4 4 4 5 5 5 5 5 5 Most Carried 5 | . 2 2 2 2 2 2 2 2 2 2 2 2 3 3 3 3 3 3 3 4 4 4 5 5 5 5 5 5 5 Average Carried 3 | . 1 2 1 2 2 2 1 1 1 1 1 2 2 2 2 3 3 2 2 3 3 3 4 4 4 4 5 4 4 Final Capacity 5 | . 2 2 2 2 2 2 2 2 2 2 2 2 3 3 3 3 3 3 3 4 4 4 5 5 5 5 5 5 5 Final Carried 5 | . 2 2 2 2 2 2 2 2 2 2 2 2 3 3 3 3 3 3 3 4 4 4 5 5 5 5 5 5 5 Class Distribution -------------------- 44% | Scavenger-Scout 27% | Scavenger-Mutant 12% | Hacker-Scout Dominant Class ---------------- Scavenger-Mutant | -10/Materials Scavenger-Mutant | -10/Mines Scavenger-Scout | -9/Materials Scavenger-Scout | -9/Mines Scavenger-Scout | -9/Exiles Scavenger-Scout | -8/Mines Scavenger-Scout | -8/Materials Scavenger-Scout | -7/Factory Scavenger-Mutant | -7/Lower Caves Scavenger-Mutant | -7/Lower Caves Scavenger-Mutant | -7/Zion Scavenger-Mutant | -6/Proximity Caves Scavenger-Scout | -6/Factory Scout | -6/Extension Derelict-Scout | -6/Cetus Derelict-Scout | -6/Archives Derelict-Scout | -6/Hub_04(d) Scavenger-Scout | -5/Factory Scavenger-Mutant | -5/Upper Caves Scavenger-Mutant | -5/Upper Caves Mutant | -5/Warlord Scavenger-Mutant | -4/Proximity Caves Scavenger-Scout | -4/Factory Scavenger-Scout | -4/Armory Alien-Mutant | -4/Lab Hacker-Scout | -3/Research Hacker-Scout | -2/Research Hacker-Scout | -1/Access Hacker-Scout | -1/Command Resources | -11 -10 -10 -9 -9 -9 -8 -8 -7 -7 -7 -7 -6 -6 -6 -6 -6 -6 -5 -5 -5 -5 -4 -4 -4 -4 -3 -2 -1 -1 ----------- Run | Scr Mat Min Mat Min Exi Min Mat Fac Low Low Zio Pro Fac Ext Cet Arc Hub Fac Upp Upp War Pro Fac Arm Lab Res Res Acc Com Matter Collected 6067 | 306 161 152 215 20 . 20 300 180 30 10 20 10 204 86 125 . 82 368 73 86 330 90 457 438 316 455 79 10 1444 Remotely 20 | . . . . . . . . . . . . . . . . . . . . . . . . . . . . . 20 Salvage Created 48901 | 87 881 707 1847 692 . 602 1961 1548 1079 647 75 1091 3724 2669 591 . 1219 980 987 582 419 1297 3189 2506 316 4152 2024 158 12871 Parts 1969 | 4 61 27 117 38 . 21 116 53 21 21 . 41 85 91 26 11 49 56 39 32 22 65 147 124 15 152 67 32 436 Haulers Intercepted 36 | . . . 6 . . . 4 3 . . . . 6 4 . . 1 4 . . . . 5 . . 2 1 . . Recyclers Shooed 8 | . . 6 . . . . . . . . . . 1 . . . . . . . . . . . . . . . 1 Parts Field Recycled . | . . . . . . . . . . . . . . . . . . . . . . . . . . . . . . Retrieved Matter . | . . . . . . . . . . . . . . . . . . . . . . . . . . . . . . Parts Self-Destructed 285 | . . . . . . . . . 12 15 . 46 . . . . . . 38 30 85 59 . . . . . . . Prevented 46 | . . . . . . . . . 9 6 . 2 . . . . . . 3 3 21 2 . . . . . . . Kills | -11 -10 -10 -9 -9 -9 -8 -8 -7 -7 -7 -7 -6 -6 -6 -6 -6 -6 -5 -5 -5 -5 -4 -4 -4 -4 -3 -2 -1 -1 ------- Run | Scr Mat Min Mat Min Exi Min Mat Fac Low Low Zio Pro Fac Ext Cet Arc Hub Fac Upp Upp War Pro Fac Arm Lab Res Res Acc Com Combat Hostiles Destroyed 719 | . 20 15 35 16 . 10 32 27 15 16 . 26 38 38 9 4 22 9 16 12 16 20 37 46 4 58 18 4 156 Melee 580 | . . . . 15 . 4 21 22 13 11 . 24 30 37 9 4 20 8 16 11 14 20 34 38 3 57 17 4 148 Guns 60 | . 16 . 29 1 . 5 9 . . . . . . . . . . . . . . . . . . . . . . Cannons 12 | . . 11 . . . . . . . . . . . . . . . . . . . . . 1 . . . . . AOE 19 | . 4 4 4 . . 1 1 . . . . . . . . . . . . . . . . 5 . . . . . Classes Destroyed 29 | 2 4 4 5 . . . 1 1 3 . . 1 1 1 . . . . . . 3 . . . . . . . 3 Worker 20 | . . 1 1 3 . 1 2 . . . . . 2 . . . 1 1 . . . . . . . . . . 8 Builder 9 | . . 1 2 . . . 1 1 . . . . 1 . . . . . . . . . 1 . . 2 . . . Tunneler 9 | 1 1 . 2 . . 1 . . . . . . 2 1 . . . . . . . . . . . 1 . . . Hauler 36 | . . . 6 . . . 4 3 . . . . 6 4 . . 1 4 . . . . 5 . . 2 1 . . Recycler 26 | 1 2 6 . 2 . 2 1 1 . . . . 5 . . . . . . . . . 1 . . 2 1 . 2 Carrier 1 | . . . 1 . . . . . . . . . . . . . . . . . . . . . . . . . . Minesweeper 2 | . . . . . . . . . 1 . . . . . . . . . . 1 . . . . . . . . . Mechanic 8 | . . . . . . . . . . . . 1 1 . . . . 1 . . . . 1 . . . . . 4 Operator 15 | . 3 . 2 . . . 3 1 . . . . . 1 . . . . . . . . 1 . . 2 1 1 . Drone 2 | . . . . . . . . . . . . . . . . . . . . . . . . . . . . . 2 Watcher 51 | . 3 . 5 . . . 5 2 . . . . 2 2 2 . 1 8 . . . . 6 4 . 2 4 . 5 Swarmer 95 | . 2 9 5 9 . 6 2 6 2 4 . 10 6 . . . 3 . 3 4 5 5 3 5 . 1 . . 5 Saboteur 9 | . . . . . . . . . . . . . . 1 . . . . . . . . . 2 . 1 1 . 4 Grunt 247 | . 18 . 18 6 . 4 17 8 5 8 . 7 18 18 4 . 12 . 5 5 5 2 13 13 3 7 6 . 45 Brawler 29 | . . . 1 1 . . 1 1 2 . . 3 1 1 . . 2 . . . 2 . 1 . . 1 . . 12 Duelist 29 | . . . 1 . . . 1 2 1 1 . 3 3 1 . . . . . 1 . 1 . 2 . 1 . . 11 Protector 16 | . . . . . . . 1 . . . . . 1 . . . 1 . . . . 3 . . . . . . 10 Sentry 76 | . . . 10 . . . 9 2 2 2 . 2 2 8 . 4 2 5 2 1 . 2 7 4 . 9 2 . 1 Demolisher 7 | . . . . . . . . . . . . . . . . . . . . . 1 3 1 2 . . . . . Specialist 11 | . . . . . . . . . . . . . 1 . . . . . . . . . . 6 . . . . 4 Hunter 73 | . . . . . . . 1 7 1 1 . . 5 6 . . 2 . 2 . . 2 4 2 . 8 6 1 25 Programmer 59 | . . . . . . . . 1 1 . . . 1 1 . . . 4 3 . . 1 8 10 . 8 . 3 18 Behemoth 10 | . . . . . . . . . 1 . . 1 . 2 . . . . 1 1 . 1 . . . 1 . . 2 Cetus Guard 5 | . . . . . . . . . . . . . . . 5 . . . . . . . . . . . . . . M Guard 2 | . . . . . . . . . . . . . . . . . . . . . . . . . . . . . 2 Tracker 15 | . . . . . . . . . . . . . . . . . . . . . . . . . . 13 2 . . Combat Programmer 11 | . . . . . . . . . . . . . . . . . . . . . . . . . . 8 1 . 2 Investigator 1 | . . . . . . . . . . . . . . . . . . . . . . . . . . . . . 1 Striker 5 | . . . . . . . . . . . . . . . . . . . . . 1 . . . . . . . 4 Executioner 8 | . . . . . . . . . . . . . . . . . . . . . 2 . . . . . . . 6 Alpha 7 1 | . . . . . . . . . . . . . . . . . . . . . . . . . . . . . 1 Decomposer 1 | . . . . . . . . . . 1 . . . . . . . . . . . . . . . . . . . Samaritan 1 | . . . . . . . . . 1 . . . . . . . . . . . . . . . . . . . . Assembled 6 | . . 6 . . . . . . . . . . . . . . . . . . . . . . . . . . . Thug 2 | . . . . 2 . . . . . . . . . . . . . . . . . . . . . . . . . Guerrilla 1 | . . 1 . . . . . . . . . . . . . . . . . . . . . . . . . . . Best Kill Streak 38 | 2 6 6 10 4 . 4 8 8 7 6 . 7 11 9 5 4 12 4 4 5 6 5 13 10 3 11 7 4 38 Combat Bots Only 22 | . 4 3 6 4 . 3 6 8 7 6 . 6 7 9 4 4 12 2 4 5 6 5 9 10 3 10 7 4 22 Max Kills in Single Turn 7 | 1 3 3 7 1 . 3 2 1 1 2 . 2 2 2 2 1 2 1 1 1 2 2 2 4 1 2 2 1 2 Gunslinging 2 | . 1 . 1 . . 2 . . . . . . . . . . . . . . . . . . . . . . . Exploded 4 | . 3 2 3 . . 1 1 . . . . . . . . . . . . . . . . 4 . . . . . Melee 2 | . . . . 1 . 1 1 1 1 1 . 2 2 2 2 1 2 1 1 1 2 2 2 2 1 2 2 1 2 Uniques/NPCs Destroyed 2 | . . . . . . . . . . . . . . . . . . . . . . . . . 1 . . . 1 A5 (-4/Lab) MAIN.C Shell (-1/Command) MAIN.C (-1/Command) Combat | -11 -10 -10 -9 -9 -9 -8 -8 -7 -7 -7 -7 -6 -6 -6 -6 -6 -6 -5 -5 -5 -5 -4 -4 -4 -4 -3 -2 -1 -1 -------- Run | Scr Mat Min Mat Min Exi Min Mat Fac Low Low Zio Pro Fac Ext Cet Arc Hub Fac Upp Upp War Pro Fac Arm Lab Res Res Acc Com Damage Taken 24549 | . 1031 775 935 622 . 214 926 1014 648 378 . 721 1354 957 1038 304 574 340 508 272 287 707 620 912 16 1807 605 96 6888 Core 15748 | . 758 535 664 426 . 157 643 627 391 197 . 429 805 565 638 194 315 187 309 201 202 426 372 607 12 1209 371 60 4448 Absorbed by Shields 11249 | . . . . . . . . 298 239 144 . 269 461 294 264 109 213 127 186 100 191 271 648 587 18 1561 636 100 4533 Redirected to Core 13771 | . 524 453 550 343 . 102 535 607 370 176 . 374 731 511 573 176 311 187 279 188 176 382 345 524 12 1062 341 56 3883 Core Remaining (%) 94 | 100 . 64 . . . 100 99 . . . . 100 . . . . 98 . . . . 100 . . 98 98 88 . 98 Volleys Fired 300 | 3 90 55 105 1 . 6 27 . . . . . . . 1 . 4 . . . . . . 2 . . . . 6 Largest 4 | 2 2 2 3 3 . 3 4 . . . . . . . 1 . 1 . . . . . . 1 . . . . 1 Hottest 200 | 40 60 116 150 150 . 150 200 . . . . . . . 30 . 28 . . . . . . 46 . . . . 120 Shots Fired 722 | 6 178 110 299 3 . 18 95 . . . . . . . 1 . 4 . . . . . . 2 . . . . 6 Gun 630 | 6 178 28 298 3 . 18 95 . . . . . . . . . 4 . . . . . . . . . . . . Cannon 83 | . . 82 . . . . . . . . . . . . . . . . . . . . . . . . . . 1 Launcher 3 | . . . 1 . . . . . . . . . . . . . . . . . . . . 2 . . . . . Special 6 | . . . . . . . . . . . . . . . 1 . . . . . . . . . . . . . 5 Kinetic 127 | 6 89 28 . . . . . . . . . . . . . . 4 . . . . . . . . . . . . Thermal 28 | . . 27 . . . . . . . . . . . . . . . . . . . . . . . . . . 1 Explosive 3 | . . . 1 . . . . . . . . . . . . . . . . . . . . 2 . . . . . Electromagnetic 558 | . 89 55 298 3 . 18 95 . . . . . . . . . . . . . . . . . . . . . . Robot Hit Streak 14 | 1 10 13 14 5 . 4 9 . . . . . . . 4 . . . . . . . . . . . . . 5 Robot Miss Streak 5 | 1 4 5 5 . . 3 3 . . . . . . . . . . . . . . . . 1 . . . . . Penetration Max . | . . . . . . . . . . . . . . . . . . . . . . . . . . . . . . Secondary Targets 21 | . 6 . 9 1 . 2 3 . . . . . . . . . . . . . . . . . . . . . . Max Gunslinging Chain 2 | . 1 . 1 1 . 2 1 . . . . . . . . . . . . . . . . . . . . . . Shots Hit Robots 3130 | 3 88 52 151 40 . 28 130 103 91 67 2 131 184 135 48 20 88 63 76 43 45 76 132 151 21 296 97 9 760 Core Hits 1318 | 3 52 32 68 23 . 13 55 28 18 14 . 34 56 54 19 7 27 25 22 15 15 44 65 72 9 128 48 6 366 Critical Hits 112 | . . 1 . . . . 3 1 3 . . 3 3 5 1 1 5 3 2 1 1 6 8 8 1 7 5 1 43 Critical Kills 36 | . . 1 . . . . 1 . 1 . . . 1 1 1 . 2 1 1 . 1 1 4 . 1 1 1 . 17 Critical Parts Destroyed 58 | . . . . . . . 2 1 1 . . 3 2 2 . . 1 2 1 1 . 3 3 8 . 6 2 1 19 Melee Attacks 4773 | . . . 16 77 16 31 164 241 109 93 69 156 307 182 51 23 157 189 92 56 68 112 323 337 86 474 153 57 1134 Impact 1488 | . . . . . . . . 142 74 74 29 78 162 82 14 7 55 65 40 18 22 39 92 76 16 88 36 8 271 Slashing 2782 | . . . 16 77 16 31 164 99 35 19 40 78 145 100 37 16 102 101 23 31 38 45 192 213 49 311 101 38 665 Piercing 503 | . . . . . . . . . . . . . . . . . . 23 29 7 8 28 39 48 21 75 16 11 198 Sneak Attacks 178 | . . . 1 10 . 6 9 7 2 4 . 2 31 14 . . 5 9 . 2 3 1 15 12 3 17 5 . 20 Combat Hostiles 48 | . . . . . . . 2 . . 2 . . 1 7 . . 1 . . . 3 1 3 11 3 6 3 . 5 Follow-up Attacks 1332 | . . . . 4 . 1 13 49 41 34 . 62 84 60 24 10 44 26 43 19 21 35 56 75 11 157 52 3 408 Damage Inflicted 161562 | 38 1451 1247 4126 1878 . 2053 5481 4428 3718 2661 164 5082 10403 7915 2261 996 4562 4144 3930 2612 2297 4864 8227 9493 1574 17219 5562 525 42651 Guns 4941 | 38 1064 75 2496 48 . 117 1103 . . . . . . . . . . . . . . . . . . . . . . Cannons 839 | . . 839 . . . . . . . . . . . . . . . . . . . . . . . . . . . Explosions 2940 | . 374 308 1505 . . 40 101 . . . . . . . . . 46 . . . . . . 566 . . . . . Melee 152804 | . . . 125 1830 . 1896 4277 4428 3718 2661 164 5082 10403 7915 2261 996 4516 4144 3930 2612 2297 4864 8227 8927 1574 17219 5562 525 42651 Ramming 38 | . 13 25 . . . . . . . . . . . . . . . . . . . . . . . . . . . Kinetic 477 | 38 364 75 . . . . . . . . . . . . . . . . . . . . . . . . . . . Thermal 2184 | . 374 380 1289 . . 40 101 . . . . . . . . . . . . . . . . . . . . . . Explosive 850 | . . 68 216 . . . . . . . . . . . . . . . . . . . . 566 . . . . . Electromagnetic 5209 | . 700 699 2496 48 . 117 1103 . . . . . . . . . 46 . . . . . . . . . . . . Impact 32717 | . . . . . . . . 2281 2347 1896 164 1944 3769 2126 401 182 1022 659 1022 439 585 978 1393 1349 241 2298 728 36 6857 Slashing 99425 | . . . 125 1830 . 1896 4277 2147 1371 765 . 3138 6634 5789 1860 814 3494 2927 1357 1949 1673 2417 5821 5754 1041 11894 3945 190 26317 Piercing 20662 | . . . . . . . . . . . . . . . . . . 558 1551 224 39 1469 1013 1824 292 3027 889 299 9477 Highest Corruption 9 | . . . . 1 1 1 1 2 . . . . 1 2 2 2 4 5 6 6 9 2 3 3 . 8 2 . 8 Average Corruption 2 | . . . . 1 1 1 1 1 . . . . 1 1 2 2 2 2 5 6 2 1 1 2 . 3 1 . 2 Corruption Purged 26 | . . . . . . . . 2 . . . . . . . . . . . . . 2 . 5 . 3 . . 14 Effects 186 | . . . . 1 1 1 . 11 . . . . 1 9 3 1 11 12 26 19 3 2 13 9 . 21 5 . 37 Message Errors 41 | . . . . . . 1 . 1 . . . . . 3 1 . . 2 5 8 . 1 6 1 . 4 1 . 7 Matter Fused 30 | . . . . . . . . . . . . . . . . . 4 1 6 4 . . 2 4 . 4 . . 5 Heat Flow Errors 10 | . . . . . . . . 2 . . . . . . . . 1 . . 2 . . 1 . . 1 . . 3 Energy Discharges 28 | . . . . . . . . 4 . . . . . 1 1 . 1 2 5 2 1 1 . 1 . 3 1 . 5 Parts Rejected 2 | . . . . . . . . . . . . . . . . . . . 1 . . . . . . . . . 1 Data Loss (minor) 20 | . . . . 1 . . . 2 . . . . 1 1 1 . 2 5 3 1 . . 2 1 . . . . . Data Loss (major) 1 | . . . . . . . . . . . . . . . . . . 1 . . . . . . . . . . . Targeting Errors 54 | . . . . . 1 . . 2 . . . . . 4 . 1 3 1 6 2 2 . 2 2 . 9 3 . 16 Overload Shots . | . . . . . . . . . . . . . . . . . . . . . . . . . . . . . . Overflow Damage 16474 | . 4 21 252 343 . 887 676 671 632 426 149 450 1774 569 55 . 394 520 434 580 213 320 777 894 213 2002 254 . 2964 Projectiles 16 | . . 7 . . . . . . . . . . 2 . . . . . . . . . . . . . . . 7 Explosions 248 | . 4 14 136 . . . . . . . . . . . . . . . . . . . . 94 . . . . . Melee 16210 | . . . 116 343 . 887 676 671 632 426 149 450 1772 569 55 . 394 520 434 580 213 320 777 800 213 2002 254 . 2957 Knockbacks 139 | . . . . . . . . 8 6 6 2 4 15 6 1 . 2 2 5 2 2 5 7 4 3 12 8 1 38 Impact 132 | . . . . . . . . 8 6 5 2 4 14 6 1 . 2 2 4 2 2 4 7 3 3 12 7 1 37 Kinetic . | . . . . . . . . . . . . . . . . . . . . . . . . . . . . . . Secondary 7 | . . . . . . . . . . 1 . . 1 . . . . . 1 . . 1 . 1 . . 1 . 1 Self-Inflicted Damage 443 | . 122 48 151 . . 19 13 . . . . . . . . . 90 . . . . . . . . . . . . Shots 14 | . 4 2 5 . . 1 1 . . . . . . . . . 1 . . . . . . . . . . . . Rammed 11 | . 5 6 . . . . . . . . . . . . . . . . . . . . . . . . . . . Targets Rammed 11 | . 5 6 . . . . . . . . . . . . . . . . . . . . . . . . . . . Kicked . | . . . . . . . . . . . . . . . . . . . . . . . . . . . . . . Crushed . | . . . . . . . . . . . . . . . . . . . . . . . . . . . . . . Highest Temperature 339 | . 276 246 339 . . 10 110 238 . . . . . . . . 140 . . 179 . . 139 . . 218 . . 191 Average Temperature 67 | . 72 62 74 . . 5 39 110 . . . . . . . . 85 . . 77 . . 68 . . 120 . . 70 Received Heat Transfer 4053 | . 426 160 264 183 . 72 315 175 124 108 . 197 340 163 198 48 130 48 93 54 14 47 113 143 5 59 76 . 498 Effects 3 | . 1 . 2 . . . . . . . . . . . . . . . . . . . . . . . . . . Shutdowns 1 | . . . 1 . . . . . . . . . . . . . . . . . . . . . . . . . . Energy Bleed 1 | . 1 . . . . . . . . . . . . . . . . . . . . . . . . . . . . Interference 1 | . . . 1 . . . . . . . . . . . . . . . . . . . . . . . . . . Siege Activations . | . . . . . . . . . . . . . . . . . . . . . . . . . . . . . . Robots Corrupted 4 | . . . 2 . . . 2 . . . . . . . . . . . . . . . . . . . . . . Combat Hostiles 3 | . . . 2 . . . 1 . . . . . . . . . . . . . . . . . . . . . . Parts Fried 123 | . 4 1 17 . . . 10 11 8 8 1 3 11 6 . . 3 1 . . 3 3 4 4 1 6 2 . 16 Impact Corruptions 243 | . . . . . . . . 18 38 19 6 8 34 10 1 . 7 7 6 4 6 6 11 8 2 15 2 . 35 Robots Melted . | . . . . . . . . . . . . . . . . . . . . . . . . . . . . . . Combat Hostiles . | . . . . . . . . . . . . . . . . . . . . . . . . . . . . . . Parts Melted 8 | . 1 . . . . . . . . . . . . 2 . . 2 . . . . . . . . 1 . . 2 Heat Transferred 2396 | . 650 546 1050 . . 50 100 . . . . . . . . . . . . . . . . . . . . . . Parts Sabotaged 8 | . . . . . . . . . . . . . . . . . . . . . . . . 6 . . . . 2 Parts Stolen . | . . . . . . . . . . . . . . . . . . . . . . . . . . . . . . Parts Stripped . | . . . . . . . . . . . . . . . . . . . . . . . . . . . . . . Power Chain Reactions 22 | . 7 4 7 . . 1 3 . . . . . . . . . . . . . . . . . . . . . . Missiles Intercepted . | . . . . . . . . . . . . . . . . . . . . . . . . . . . . . . Alert | -11 -10 -10 -9 -9 -9 -8 -8 -7 -7 -7 -7 -6 -6 -6 -6 -6 -6 -5 -5 -5 -5 -4 -4 -4 -4 -3 -2 -1 -1 ------- Run | Scr Mat Min Mat Min Exi Min Mat Fac Low Low Zio Pro Fac Ext Cet Arc Hub Fac Upp Upp War Pro Fac Arm Lab Res Res Acc Com Peak Influence 3627 | 10 525 383 935 771 . 427 1152 1210 . . . . 1594 1889 1080 535 880 743 . . . . 1474 1411 . 1965 2172 1474 3627 Average Influence 906 | 2 297 252 612 557 . 235 619 643 . . . . 1037 1327 932 515 419 599 . . . . 663 914 . 590 1587 1332 2540 Maximum Alert Level 5 | . 2 1 3 3 . 2 4 4 . . . . 4 5 3 2 3 3 . . . . 4 4 . 5 5 4 5 Low Security (%) 8 | 100 20 38 11 . . 31 7 . . . . . . . . . 28 . . . . . 16 . . 45 . . . Level 1 7 | . 51 61 5 11 . 59 26 7 . . . . 2 . . 5 17 . . . . . 8 . . 5 . . . Level 2 24 | . 28 . 37 85 . 8 24 62 . . . . 21 . . 94 47 98 . . . . 23 18 . 13 . . . Level 3 23 | . . . 45 3 . . 38 18 . . . . 31 26 100 . 6 1 . . . . 39 65 . 7 . . 5 Level 4 15 | . . . . . . . 3 11 . . . . 44 46 . . . . . . . . 12 16 . 21 51 100 9 Level 5 10 | . . . . . . . . . . . . . . 26 . . . . . . . . . . . 6 3 . 42 High Security 9 | . . . . . . . . . . . . . . . . . . . . . . . . . . . 45 . 43 Max Security . | . . . . . . . . . . . . . . . . . . . . . . . . . . . . . . Squads Dispatched 163 | . 6 . 7 . . . 11 17 . 1 . 1 15 7 . . 11 4 . . . . 13 10 . 29 6 4 21 Investigation 55 | . 4 . 2 . . . 8 8 . . . . 9 3 . . 4 2 . . . . 3 5 . 3 1 2 1 Extermination 16 | . . . . . . . . 1 . . . . 1 . . . . 2 . . . . 4 4 . 2 . . 2 Reinforcement 23 | . 2 . 4 . . . 1 2 . . . . . 2 . . 3 . . . . . 3 . . 2 2 2 . Assault 45 | . . . 1 . . . 1 6 . 1 . 1 5 2 . . 1 . . . . . 3 1 . 5 . . 18 Garrison 4 | . . . . . . . 1 . . . . . . . . . 3 . . . . . . . . . . . . Intercept 20 | . . . . . . . . . . . . . . . . . . . . . . . . . . 17 3 . . Construction Impeded 3 | . . . 2 . . . . . . . . . . . . . . . . . . . 1 . . . . . . Haulers Reinforced 2 | . . . . . . . . 1 . . . . . . . . 1 . . . . . . . . . . . . Stealth | -11 -10 -10 -9 -9 -9 -8 -8 -7 -7 -7 -7 -6 -6 -6 -6 -6 -6 -5 -5 -5 -5 -4 -4 -4 -4 -3 -2 -1 -1 --------- Run | Scr Mat Min Mat Min Exi Min Mat Fac Low Low Zio Pro Fac Ext Cet Arc Hub Fac Upp Upp War Pro Fac Arm Lab Res Res Acc Com Distress Signals 64 | . 4 . . . . . 2 1 . . . . 3 3 2 . 2 1 . . . 5 6 2 . 5 4 . 24 Communications Jammed . | . . . . . . . . . . . . . . . . . . . . . . . . . . . . . . Distress Signals . | . . . . . . . . . . . . . . . . . . . . . . . . . . . . . . Times Spotted 1365 | . 32 23 44 21 . 12 59 47 15 16 . 35 70 49 14 4 34 25 19 14 49 19 87 61 4 102 41 12 457 Peak Tracking Total 168 | . 7 4 5 4 . 3 7 10 7 8 . 8 11 10 5 3 9 8 5 5 13 5 11 8 3 17 17 4 168 Tactical Retreats 93 | . . 4 5 1 . . 7 4 . 4 . 1 5 3 . . 4 4 1 2 1 . 8 2 . 9 3 . 25 Traps | -11 -10 -10 -9 -9 -9 -8 -8 -7 -7 -7 -7 -6 -6 -6 -6 -6 -6 -5 -5 -5 -5 -4 -4 -4 -4 -3 -2 -1 -1 ------- Run | Scr Mat Min Mat Min Exi Min Mat Fac Low Low Zio Pro Fac Ext Cet Arc Hub Fac Upp Upp War Pro Fac Arm Lab Res Res Acc Com Traps Triggered 15 | . 2 . . . . . 1 3 . . . . 2 . . . . 2 . . . . . 1 . . . 1 3 Indirectly . | . . . . . . . . . . . . . . . . . . . . . . . . . . . . . . Trap Hack Attempts . | . . . . . . . . . . . . . . . . . . . . . . . . . . . . . . Triggered . | . . . . . . . . . . . . . . . . . . . . . . . . . . . . . . Disarmed . | . . . . . . . . . . . . . . . . . . . . . . . . . . . . . . Reprogrammed 6 | . . . . . . . . . . . . . . . . . . . . . . . . . . 6 . . . Reused 3 | . . 1 1 . . . . . . . . . . . . . . . . . . . . . . 1 . . . Traps Extracted . | . . . . . . . . . . . . . . . . . . . . . . . . . . . . . . Installed 11 | . . 2 1 . . . . . . . . . . . . . . . . 8 . . . . . . . . . Triggered 10 | . . . 1 . . . . . . . . . . . . . . . . 2 5 . . 1 . 1 . . . Machines | -11 -10 -10 -9 -9 -9 -8 -8 -7 -7 -7 -7 -6 -6 -6 -6 -6 -6 -5 -5 -5 -5 -4 -4 -4 -4 -3 -2 -1 -1 ---------- Run | Scr Mat Min Mat Min Exi Min Mat Fac Low Low Zio Pro Fac Ext Cet Arc Hub Fac Upp Upp War Pro Fac Arm Lab Res Res Acc Com Machines Disabled 193 | . 16 6 27 5 . 5 24 5 1 . . 1 3 3 1 . 9 1 . . 3 5 8 18 11 3 3 3 32 Max in Single Turn 7 | . 3 1 7 1 . 1 1 1 1 . . 1 1 1 1 . 5 1 . . 1 1 1 1 1 1 1 1 2 Garrison Access 7 | . . . . . . . 1 3 . . . . 1 . . . . . . . . . . . . . 2 . . Phase Generator 1 | . . . . . . . . . . . . . . . . . . . . . . . . . . . . . 1 Network Hub 1 | . . . . . . . . . . . . . . . . . 1 . . . . . . . . . . . . Energy Cycler 4 | . . . . . . . . . . . . . . 4 . . . . . . . . . . . . . . . Machines Sabotaged . | . . . . . . . . . . . . . . . . . . . . . . . . . . . . . . Garrisons Compromised . | . . . . . . . . . . . . . . . . . . . . . . . . . . . . . . Overloaded Fab Kills . | . . . . . . . . . . . . . . . . . . . . . . . . . . . . . . Fab Network Shutdowns 1 | . . . . . . . . . . . . . 1 . . . . . . . . . . . . . . . . Hacking | -11 -10 -10 -9 -9 -9 -8 -8 -7 -7 -7 -7 -6 -6 -6 -6 -6 -6 -5 -5 -5 -5 -4 -4 -4 -4 -3 -2 -1 -1 --------- Run | Scr Mat Min Mat Min Exi Min Mat Fac Low Low Zio Pro Fac Ext Cet Arc Hub Fac Upp Upp War Pro Fac Arm Lab Res Res Acc Com Machines Accessed 200 | . 6 . 14 1 1 . 14 18 1 . 1 . 21 11 4 . 5 18 1 1 8 . 30 11 2 18 3 5 6 Terminals 118 | . 3 . 9 1 . . 9 8 . . . . 12 10 4 . 4 12 . . . . 17 7 . 9 2 5 6 Fabricators 14 | . . . . . . . . 2 . . . . 2 . . . . 2 . . . . 3 3 . 2 . . . Repair Stations 6 | . 1 . 1 . . . 1 . . . . . . . . . . . . . . . . 1 . 2 . . . Recycling Units 21 | . 2 . 2 . . . 1 4 . . . . 3 1 . . . 2 . . . . 4 . . 2 . . . Scanalyzers 13 | . . . 2 . . . 2 1 . . . . 3 . . . . . . . . . 4 . . 1 . . . Garrison Access 13 | . . . . . . . 1 3 . . . . 1 . . . 1 2 . . . . 2 . . 2 1 . . Total Hacks 840 | . 20 . 45 2 1 . 66 58 1 . 3 . 71 31 17 . 19 83 1 1 22 . 138 65 20 105 18 22 31 Successful 508 | . 11 . 38 2 1 . 43 31 1 . 3 . 37 16 13 . 9 39 1 1 22 . 81 40 20 60 11 11 17 Failed 329 | . 9 . 6 . . . 23 27 . . . . 34 15 4 . 10 43 . . . . 57 25 . 44 7 11 14 Catastrophic 45 | . 1 . 1 . . . 3 4 . . . . 5 2 . . 1 6 . . . . 7 4 . 6 . 2 3 Database Lockouts 4 | . . . 1 . . . . . . . . . . . . . . 2 . . . . . . . 1 . . . Manual 441 | . 12 . 23 3 1 . 47 36 . . . . 28 24 18 . 15 43 . . . . 72 35 1 41 14 13 15 Terminals 534 | . 7 . 30 2 . . 46 30 . . . . 37 29 17 . 16 61 . . . . 96 47 . 52 11 22 31 Fabricators 69 | . . . . . . . . 6 . . . . 12 . . . . 7 . . . . 12 17 . 15 . . . Repair Stations 22 | . 5 . 2 . . . 5 . . . . . . . . . . . . . . . . 1 . 9 . . . Recycling Units 78 | . 8 . 8 . . . 7 10 . . . . 10 2 . . . 8 . . . . 16 . . 9 . . . Scanalyzers 52 | . . . 5 . . . 4 4 . . . . 10 . . . . . . . . . 11 . . 18 . . . Garrison Access 36 | . . . . . . . 4 8 . . . . 2 . . . 3 7 . . . . 3 . . 2 7 . . Terminal Hacks 203 | . . . 11 2 1 . 10 6 1 . 3 . 8 6 2 . 3 14 1 1 22 . 33 19 20 21 2 7 10 Record 43 | . . . . . . . 1 . . . . . . . . . . . . . 18 . 1 1 20 . . 1 1 Part Schematic 11 | . . . . . . . . . . . 3 . 1 1 . . . 3 . . . . 1 . . 1 1 . . Robot Schematic 2 | . . . . . . . . . . . . . . . . . . . . . . . 1 . . 1 . . . Robot Analysis 18 | . . . 1 2 . . . . . . . . . 1 . . . 1 . . . . 9 . . 2 . . 2 Prototype ID Bank 15 | . . . 2 . . . 1 . . . . . 1 . . . . 1 . . 4 . 2 . . 4 . . . Open Door 6 | . . . . . . . . . 1 . . . . 2 . . . . 1 1 . . . 1 . . . . . Level Access Points 4 | . . . . . . . . . . . . . . . . . . . . . . . . 2 . 1 . 1 . Branch Access Points 7 | . . . 1 . . . . 1 . . . . 1 . . . . 1 . . . . 1 . . 1 . 1 . Emergency Access Points 5 | . . . . . . . 1 . . . . . . . . . . 1 . . . . . . . 1 . . 2 Terminal Index 5 | . . . . . . . 1 1 . . . . . . . . . 1 . . . . . . . 1 . 1 . Fabricator Index 2 | . . . . . . . . . . . . . . . . . . 1 . . . . 1 . . . . . . Scanalyzer Index 1 | . . . . . . . . . . . . . . . . . . 1 . . . . . . . . . . . Garrison Index 1 | . . . . . . . . . . . . . . . . . . . . . . . . . . 1 . . . Alert Level 15 | . . . 1 . . . . . . . . . 1 . . . 1 1 . . . . 3 5 . 2 . 1 . Unreport Threat 25 | . . . 3 . . . 2 1 . . . . 2 1 2 . 1 2 . . . . 4 5 . . . 2 . Locate Traps 18 | . . . 2 . . . 2 1 . . . . 1 1 . . 1 . . . . . 6 . . 2 . . 2 Reprogram Traps 1 | . . . . . . . . . . . . . . . . . . . . . . . . . . 1 . . . Recall Investigation 1 | . . . . . . . . . . . . . . . . . . . . . . . . 1 . . . . . Recall Extermination 1 | . . . . . . . . 1 . . . . . . . . . . . . . . . . . . . . . Recall Assault 1 | . . . . . . . . . . . . . . . . . . . . . . . 1 . . . . . . Hauler Manifests 5 | . . . 1 . . . 1 . . . . . . . . . . . . . . . 1 1 . 1 . . . Registered Components 4 | . . . . . . . . 1 . . . . . . . . . 1 . . . . . 1 . 1 . . . Registered Prototypes 5 | . . . . . . . . . . . . . . . . . . . . . . . 1 1 . 1 1 . 1 Zone Layout 4 | . . . . . . . 1 . . . . . 1 . . . . . . . . . 1 1 . . . . . EX-Prototype ID Bank 1 | . . . . . 1 . . . . . . . . . . . . . . . . . . . . . . . . Disengage Seal 2 | . . . . . . . . . . . . . . . . . . . . . . . . . . . . . 2 Fabricator Hacks 26 | . . . . . . . . 1 . . . . 6 . . . . 4 . . . . 4 6 . 5 . . . Network Status 1 | . . . . . . . . . . . . . 1 . . . . . . . . . . . . . . . . Load Schematic 8 | . . . . . . . . . . . . . . . . . . 2 . . . . 2 2 . 2 . . . Build 17 | . . . . . . . . 1 . . . . 5 . . . . 2 . . . . 2 4 . 3 . . . Repair Station Hacks 9 | . 2 . 2 . . . 4 . . . . . . . . . . . . . . . . . . 1 . . . Scan Component 5 | . 1 . 1 . . . 2 . . . . . . . . . . . . . . . . . . 1 . . . Repair 4 | . 1 . 1 . . . 2 . . . . . . . . . . . . . . . . . . . . . . Recycling Unit Hacks 34 | . 2 . 4 . . . 2 6 . . . . 5 1 . . . 3 . . . . 7 . . 4 . . . Report Inventory 21 | . 2 . 2 . . . 1 4 . . . . 3 1 . . . 2 . . . . 4 . . 2 . . . Retrieve Components 13 | . . . 2 . . . 1 2 . . . . 2 . . . . 1 . . . . 3 . . 2 . . . Scanalyzer 31 | . . . 4 . . . 2 1 . . . . 6 . . . . . . . . . 7 . . 11 . . . Insert Component 17 | . . . 2 . . . 1 1 . . . . 4 . . . . . . . . . 4 . . 5 . . . Analyze 14 | . . . 2 . . . 1 . . . . . 2 . . . . . . . . . 3 . . 6 . . . Garrison Access Hacks 1 | . . . . . . . 1 . . . . . . . . . . . . . . . . . . . . . . Seal Access 1 | . . . . . . . 1 . . . . . . . . . . . . . . . . . . . . . . Unauthorized Hacks 204 | . 7 . 17 . . . 24 17 . . . . 12 9 11 . 6 18 . . . . 30 15 . 18 9 4 7 Terminals 141 | . 3 . 12 . . . 19 10 . . . . 6 8 11 . 4 16 . . . . 18 10 . 9 4 4 7 Track 42 | . . . 5 . . . 6 1 . . . . . 3 3 . . 7 . . . . 7 2 . 4 2 1 1 Assimilate 21 | . . . 1 . . . 5 2 . . . . 2 . . . 1 4 . . . . 3 3 . . . . . Botnet 55 | . 3 . 5 . . . 6 6 . . . . 4 4 4 . 1 3 . . . . 5 4 . 3 2 3 2 Detonate 2 | . . . . . . . . . . . . . . . . . 1 . . . . . . . . . . . 1 Disrupt 14 | . . . 1 . . . 1 . . . . . . 1 3 . . 1 . . . . 2 1 . 1 . . 3 Operators 5 | . . . . . . . 1 1 . . . . . . 1 . . 1 . . . . 1 . . . . . . Sabotage 2 | . . . . . . . . . . . . . . . . . 1 . . . . . . . . 1 . . . Fabricators 18 | . . . . . . . . 2 . . . . 4 . . . . . . . . . 5 4 . 3 . . . Report 2 | . . . . . . . . . . . . . 1 . . . . . . . . . . 1 . . . . . Prioritize 7 | . . . . . . . . 1 . . . . 1 . . . . . . . . . 2 1 . 2 . . . Siphon 8 | . . . . . . . . 1 . . . . 1 . . . . . . . . . 3 2 . 1 . . . Haulers 1 | . . . . . . . . . . . . . 1 . . . . . . . . . . . . . . . . Repair Stations 2 | . . . . . . . . . . . . . . . . . . . . . . . . 1 . 1 . . . Mechanics 2 | . . . . . . . . . . . . . . . . . . . . . . . . 1 . 1 . . . Recycling Units 23 | . 4 . 4 . . . 2 3 . . . . 2 1 . . . . . . . . 4 . . 3 . . . Monitor 1 | . 1 . . . . . . . . . . . . . . . . . . . . . . . . . . . . Reject 15 | . 2 . 2 . . . 1 3 . . . . 2 1 . . . . . . . . 2 . . 2 . . . Recyclers 1 | . 1 . . . . . . . . . . . . . . . . . . . . . . . . . . . . Mask 6 | . . . 2 . . . 1 . . . . . . . . . . . . . . . 2 . . 1 . . . Scanalyzers 5 | . . . 1 . . . 2 1 . . . . . . . . . . . . . . 1 . . . . . . Extract 5 | . . . 1 . . . 2 1 . . . . . . . . . . . . . . 1 . . . . . . Garrison Access 15 | . . . . . . . 1 1 . . . . . . . . 2 2 . . . . 2 . . 2 5 . . Broadcast 1 | . . . . . . . . . . . . . . . . . . . . . . . . . . . 1 . . Decoy 1 | . . . . . . . . . . . . . . . . . . . . . . . . . . . 1 . . Reprogram 10 | . . . . . . . 1 1 . . . . . . . . 2 1 . . . . 2 . . 2 1 . . Intercept 1 | . . . . . . . . . . . . . . . . . . . . . . . . . . . 1 . . Watchers 2 | . . . . . . . . . . . . . . . . . . 1 . . . . . . . . 1 . . Data Cores Recovered 2 | . . . . . . . . . . . . . . . . . . . . . . . . . . 2 . . . Used 2 | . . . . . . . . . . . . . . . . . . . . . . . . . . 2 . . . Hacking Detections 169 | . 6 . 10 1 . . 12 18 . . . . 21 11 4 . 5 17 . . . . 28 8 . 15 3 4 6 Full Trace Events 38 | . 2 . . 1 . . 5 6 . . . . 8 3 . . 3 1 . . . . 1 3 . 1 1 2 1 Feedback Events 5 | . . . . 1 . . 1 . . . . . . 1 . . 2 . . . . . . . . . . . . Corruption 5 | . . . . 1 . . 1 . . . . . . 1 . . 2 . . . . . . . . . . . . Feedback Blocked . | . . . . . . . . . . . . . . . . . . . . . . . . . . . . . . Robot Schematics Acquired 2 | . . . . . . . . . . . . . . . . . . . . . . . 1 . . 1 . . . Robots Built 30 | . . . . . . . . 4 . . . . 12 . . . . . . . . . . 2 . 12 . . . Matter 2022 | . . . . . . . . 189 . . . . 756 . . . . . . . . . . 213 . 864 . . . Time 479 | . . . . . . . . 33 . . . . 268 . . . . . . . . . . 76 . 102 . . . Total Robot Build Rating 170 | . . . . . . . . 16 . . . . 48 . . . . . . . . . . 10 . 96 . . . Part Schematics Acquired 33 | . . . 6 . . . 4 4 . . 3 . 3 1 . . . 3 . . . . 5 . . 3 1 . . Parts Built 9 | . . . . . . . . . . . . . . . . . . 3 . . . . 3 3 . . . . . Matter 1655 | . . . . . . . . . . . . . . . . . . 424 . . . . 367 864 . . . . . Time 485 | . . . . . . . . . . . . . . . . . . 86 . . . . 93 306 . . . . . Total Part Build Rating 64 | . . . . . . . . . . . . . . . . . . 17 . . . . 23 24 . . . . . Parts Repaired 4 | . 1 . 1 . . . 2 . . . . . . . . . . . . . . . . . . . . . . Time 210 | . 26 . 70 . . . 114 . . . . . . . . . . . . . . . . . . . . . . Parts Recycled . | . . . . . . . . . . . . . . . . . . . . . . . . . . . . . . Recycled Matter . | . . . . . . . . . . . . . . . . . . . . . . . . . . . . . . Retrieved Matter . | . . . . . . . . . . . . . . . . . . . . . . . . . . . . . . Retrieved Components 70 | . . . 12 . . . 5 12 . . . . 18 . . . . 10 . . . . 9 . . 4 . . . Parts Scanalyzed 13 | . . . 2 . . . 1 1 . . . . 3 . . . . . . . . . 3 . . 3 . . . Part Schematics Acquired 10 | . . . 2 . . . 1 . . . . . 2 . . . . . . . . . 3 . . 2 . . . Parts Damaged 2 | . . . 1 . . . . . . . . . . . . . . . . . . . . . . 1 . . . Bothacking | -11 -10 -10 -9 -9 -9 -8 -8 -7 -7 -7 -7 -6 -6 -6 -6 -6 -6 -5 -5 -5 -5 -4 -4 -4 -4 -3 -2 -1 -1 ------------ Run | Scr Mat Min Mat Min Exi Min Mat Fac Low Low Zio Pro Fac Ext Cet Arc Hub Fac Upp Upp War Pro Fac Arm Lab Res Res Acc Com Used RIF Installer . | . . . . . . . . . . . . . . . . . . . . . . . . . . . . . . Robots Hacked 3 | . . . . . . . . . . . . . . . 1 . . . . . . . . . . . . . 2 Non-combat . | . . . . . . . . . . . . . . . . . . . . . . . . . . . . . . Combat 3 | . . . . . . . . . . . . . . . 1 . . . . . . . . . . . . . 2 Robot Hacks Applied 3 | . . . . . . . . . . . . . . . 1 . . . . . . . . . . . . . 2 parse_system 3 | . . . . . . . . . . . . . . . 1 . . . . . . . . . . . . . 2 Relay Couplers Released 7 | . . . . . . . 1 2 . . . . 1 . . . . . . . . . 2 . . . 1 . . Machine Destruction 5 | . . . . . . . 1 2 . . . . 1 . . . . . . . . . . . . . 1 . . Programmers 2 | . . . . . . . . . . . . . . . . . . . . . . . 2 . . . . . . Robots Rewired 32 | . . . . . . . . . 2 . . 2 . 15 . . . . 1 . 3 3 . 4 . . . . 2 Allies Hacked 5 | . . . . . . . . . . . . . . . . . . 1 . . . . 2 1 . 1 . . . Hacks Repelled . | . . . . . . . . . . . . . . . . . . . . . . . . . . . . . . Allies | -11 -10 -10 -9 -9 -9 -8 -8 -7 -7 -7 -7 -6 -6 -6 -6 -6 -6 -5 -5 -5 -5 -4 -4 -4 -4 -3 -2 -1 -1 -------- Run | Scr Mat Min Mat Min Exi Min Mat Fac Low Low Zio Pro Fac Ext Cet Arc Hub Fac Upp Upp War Pro Fac Arm Lab Res Res Acc Com Total Allies 210 | . . . 1 3 . . 3 7 2 . 3 2 14 21 . . 4 1 1 . 3 3 6 8 . 17 . . 111 Largest Group 16 | . . . 1 3 3 3 2 4 2 2 3 4 11 11 7 2 4 1 1 . 3 3 4 3 . 7 2 . 16 Highest-Rated Group 456 | . . . 10 40 40 40 32 48 36 36 75 120 304 296 193 43 109 10 29 . 147 128 195 122 . 210 94 . 456 Highest-Rated Ally 243 | . . . 10 16 16 16 16 16 20 20 31 31 30 37 32 23 41 10 29 . 60 49 90 56 . 47 47 . 243 Total Orders 14 | . . . . . . . . . . . . . 1 . 3 . . . . . . 5 5 . . . . . . STAY 2 | . . . . . . . . . . . . . . . . . . . . . . 1 1 . . . . . . FOLLOW 5 | . . . . . . . . . . . . . . . 1 . . . . . . 3 1 . . . . . . EXPLORE 7 | . . . . . . . . . . . . . 1 . 2 . . . . . . 1 3 . . . . . . Ally Attacks 960 | . . . . 9 . 19 7 29 . 7 . 49 43 83 22 . 12 . 4 . 26 . 37 53 . 94 12 . 454 Total Damage 23955 | . . . . 99 . 268 114 353 . 93 . 744 1118 1473 379 . 453 . 61 . 1548 . 2967 2177 . 1262 287 . 10559 Kills 116 | . . . . 2 . 2 . 1 . . . 7 5 9 2 . 7 . . . 4 . 21 11 . 6 2 . 37 Allies Corrupted 4 | . . . . . . . . . . . . . 1 . . . . . . . . . . . . . . . 3 Allies Melted 1 | . . . . . . . . . . . . . . . . . . . . . 1 . . . . . . . . Intel | -11 -10 -10 -9 -9 -9 -8 -8 -7 -7 -7 -7 -6 -6 -6 -6 -6 -6 -5 -5 -5 -5 -4 -4 -4 -4 -3 -2 -1 -1 ------- Run | Scr Mat Min Mat Min Exi Min Mat Fac Low Low Zio Pro Fac Ext Cet Arc Hub Fac Upp Upp War Pro Fac Arm Lab Res Res Acc Com Robot Analysis Total 18 | . . . 1 2 . . . . . . . . . 1 . . . 1 . . . . 9 . . 2 . . 2 Derelict Logs Recovered 11 | . . 1 . 1 . . . . . 2 3 1 . . . . . . 2 1 . . . . . . . . . Drone Launches 19 | . . . . . . . . . . . . . 8 2 . . . . . . . 3 6 . . . . . . Drone Recoveries . | . . . . . . . . . . . . . . . . . . . . . . . . . . . . . . Exploration | -11 -10 -10 -9 -9 -9 -8 -8 -7 -7 -7 -7 -6 -6 -6 -6 -6 -6 -5 -5 -5 -5 -4 -4 -4 -4 -3 -2 -1 -1 ------------- Run | Scr Mat Min Mat Min Exi Min Mat Fac Low Low Zio Pro Fac Ext Cet Arc Hub Fac Upp Upp War Pro Fac Arm Lab Res Res Acc Com Turns Passed 31585 | 93 1013 884 1619 732 581 584 1549 1766 708 1057 1363 1016 1579 770 329 116 596 1279 859 715 748 1095 2155 2012 443 1539 330 215 3840 Spaces Moved 34064 | 76 600 612 1550 678 650 589 1611 1851 759 873 1554 969 1598 674 335 114 651 1772 993 841 988 962 2900 1767 604 1571 493 348 5081 Core 5 | 2 . . . . . . . . . . . . . . . . . . . . . . . . . 3 . . . Treads 275 | 1 150 124 . . . . . . . . . . . . . . . . . . . . . . . . . . . Legs . | . . . . . . . . . . . . . . . . . . . . . . . . . . . . . . Wheels 808 | 73 450 285 . . . . . . . . . . . . . . . . . . . . . . . . . . . Hover 32976 | . . 203 1550 678 650 589 1611 1851 759 873 1554 969 1598 674 335 114 651 1772 993 841 988 962 2900 1767 604 1568 493 348 5081 Flight . | . . . . . . . . . . . . . . . . . . . . . . . . . . . . . . Fastest Speed 30 | 50 80 72 65 65 65 65 58 56 56 56 56 56 46 46 46 46 46 46 52 52 52 52 38 36 44 30 30 36 36 Average Speed 54 | 92 104 102 65 65 65 65 59 56 56 70 56 56 54 64 52 46 46 47 52 52 52 52 52 45 46 44 41 41 43 Slowest Speed 300 | 160 160 180 76 65 65 65 131 58 56 123 56 56 56 115 115 46 46 52 52 125 114 52 200 146 52 300 52 42 48 Overloaded Moves 899 | . . . . . . . . . . . . . . . . . . . . . . . 13 . . 287 95 38 466 Propulsion Burnouts . | . . . . . . . . . . . . . . . . . . . . . . . . . . . . . . Robots Hopped 7 | . . . . . . . . . . . . . . . . . . . . . . 1 . . . . . . 6 Cave-ins Triggered 1 | . . . . . . . . . . . . . . . . . . . . . . . . . . . . . 1 Exploration Rate (%) 73 | 5 97 91 92 87 79 97 93 51 83 86 89 96 42 81 89 71 29 50 91 93 86 93 76 86 100 44 23 16 93 Regions Visited 29 Branch Regions 19 Pre-discovered Areas 6 | . . 1 . . . . . . . 1 3 . . . . . . . . 1 . . . . . . . . . Known Exits Taken 13 | . . . 1 . . . 1 1 . 1 . 1 1 . . . . 1 . 1 . . 1 1 1 1 . 1 . Unknown Exits Taken 16 | 1 1 1 . 1 1 1 . . 1 . 1 . . 1 1 1 1 . 1 . 1 1 . . . . 1 . . Scrap Searched 24 | . . 2 . 1 . 1 . . 2 3 3 3 . . . . . . 2 5 . 2 . . . . . . . Spaces Dug 574 | . . . 1 3 12 2 36 49 . 9 9 8 41 6 . . 30 50 . 2 4 1 90 58 3 68 21 16 55 Terrain Destroyed 1137 | . 37 31 185 3 12 37 46 49 . 9 9 8 41 6 . . 193 50 . 2 4 1 90 84 3 68 21 16 132 Melee 574 | . . . 1 3 12 2 36 49 . 9 9 8 41 6 . . 30 50 . 2 4 1 90 58 3 68 21 16 55 Projectile . | . . . . . . . . . . . . . . . . . . . . . . . . . . . . . . AOE 563 | . 37 31 184 . . 35 10 . . . . . . . . . 163 . . . . . . 26 . . . . 77 Actions | -11 -10 -10 -9 -9 -9 -8 -8 -7 -7 -7 -7 -6 -6 -6 -6 -6 -6 -5 -5 -5 -5 -4 -4 -4 -4 -3 -2 -1 -1 --------- Run | Scr Mat Min Mat Min Exi Min Mat Fac Low Low Zio Pro Fac Ext Cet Arc Hub Fac Upp Upp War Pro Fac Arm Lab Res Res Acc Com Total 45544 | 91 819 758 1917 868 785 747 2058 2520 1026 1299 2044 1441 2268 981 480 176 919 2166 1310 1107 1205 1526 3501 2922 749 2339 599 408 6515 Wait 6263 | . 59 50 149 91 119 108 193 445 167 336 439 316 412 44 56 27 153 246 250 198 46 438 286 817 18 386 10 15 389 Move 34016 | 75 599 611 1549 677 649 588 1610 1850 758 872 1553 968 1596 673 334 113 650 1771 992 840 987 959 2899 1765 603 1570 492 347 5066 Hop 7 | . . . . . . . . . . . . . . . . . . . . . . 1 . . . . . . 6 Pick Up 115 | . 1 1 6 . . . 4 2 2 2 . 4 6 3 3 1 . 3 2 3 9 3 12 7 5 2 1 1 32 Fast Attach 352 | 8 8 6 14 . . 1 21 12 1 . 2 1 16 3 6 . 3 12 1 4 19 7 35 17 33 31 . . 91 Attach 43 | . 1 . 2 . . . 1 . . . . . 5 . 2 . . 1 1 . 3 . 3 1 1 2 . . 20 Detach 59 | . 1 . 2 . . . 3 1 . . 1 . 4 . 1 . . 3 1 . 3 1 7 3 2 3 . . 23 Swap 123 | 2 4 2 5 2 1 . 8 7 1 1 . . 5 . 4 . . 3 1 3 9 2 6 18 . 10 6 . 23 Drop 430 | 3 8 6 15 1 1 . 21 19 3 1 2 4 20 6 10 1 3 14 2 6 29 11 45 26 33 31 1 1 107 Fire 300 | 3 90 55 105 1 . 6 27 . . . . . . . 1 . 4 . . . . . . 2 . . . . 6 Melee 2400 | . . . 10 63 15 28 129 149 57 50 45 84 148 86 24 10 74 96 34 26 32 51 167 164 44 224 70 29 491 Ram . | . . . . . . . . . . . . . . . . . . . . . . . . . . . . . . Kick . | . . . . . . . . . . . . . . . . . . . . . . . . . . . . . . Crush 11 | . 5 6 . . . . . . . . . . . . . . . . . . . . . . . . . . . Escape Stasis 4 | . . . . . . . . . . . . . 1 . . . . . . . . . . 1 . . . . 2 Rewire 225 | . . . . . . . . . 2 . . 25 . 99 . . . . 1 . 43 13 1 35 . . . . 6 Trap 11 | . . 2 1 . . . . . . . . . . . . . . . . 8 . . . . . . . . . Miscellaneous 1185 | . 43 19 59 33 . 16 41 35 35 37 2 39 55 67 39 24 32 17 25 19 25 40 40 66 10 80 19 15 253 Route ------- -11/Scrapyard -10/Materials (discovered 5 exits: *Mat x3 / [*Min x2]) -10/Mines (discovered 2 exits: *Mat x2) -9/Materials (discovered 6 exits: *Mat x3 / *Min x2 / *Sto) -9/Mines (discovered 4 exits: *Mat x2 / *Exi / *Zio) -9/Exiles (discovered 2 exits: [*Min x2]) -8/Mines (discovered 2 exits: *Mat x2) -8/Materials (discovered 3 exits: *Fac x3) -7/Factory (discovered 5 exits: *Fac x3 / *Low x2) -7/Lower Caves -7/Lower Caves (discovered 2 exits: *Fac / *Zio) -7/Zion (discovered 2 exits: [*Dee] / [*Pro]) -6/Proximity Caves -6/Factory (discovered 5 exits: *Fac / *Low x2 / *Ext x2) -6/Extension (discovered 3 exits: *Fac x2 / *Cet) -6/Cetus (discovered 3 exits: *Fac x2 / *Arc) -6/Archives (discovered 3 exits: *Fac / *Hub x2) -6/Hub_04(d) -5/Factory (discovered 4 exits: *Fac x2 / *Upp x2) -5/Upper Caves -5/Upper Caves (discovered 2 exits: *Fac / *War) -5/Warlord -4/Proximity Caves -4/Factory (discovered 7 exits: *Res x4 / *Upp x2 / *Arm) -4/Armory (discovered 3 exits: *Res x2 / *Lab) -4/Lab -3/Research (discovered 5 exits: *Res x3 / *Qua x2) -2/Research -1/Access (discovered 2 exits: Sur / *Com) -1/Command (discovered 2 exits: *Sur x2) To Fleet Rendezvous History --------- Turn | Location | Event 13 | -11/Scrapyard | Upgraded with Propulsion slot (x1) 13 | -11/Scrapyard | Upgraded with Utility slot (x1) 13 | -11/Scrapyard | Upgraded with Weapon slot (x1) 44 | -11/Scrapyard | Discovered new exit (range 14) 94 | -11/Scrapyard | Entered Materials 136 | -10/Materials | Discovered new exit (range 10) 139 | -10/Materials | Upgraded with Utility slot (x1) 295 | -10/Materials | Core integrity fell below 50% 302 | -10/Materials | Build established: Mutant 409 | -10/Materials | Reached level 2 448 | -10/Materials | Discovered new exit (range 16) 464 | -10/Materials | Upgraded with Utility slot (x1) 562 | -10/Materials | Discovered new exit (range 16) 784 | -10/Materials | Discovered new exit (range 16) 808 | -10/Materials | Reached level 3 831 | -10/Materials | Build established: Scavenger-Mutant 951 | -10/Materials | Discovered new exit (range 15) 967 | -10/Materials | Upgraded with Power slot (x1) 980 | -10/Materials | Repaired Lgt. Assault Rifle 1107 | -10/Materials | Entered Mines 1143 | -10/Mines | Found a hidden stash of uninstalled traps 1161 | -10/Mines | Learned location of Zion (-7) 1183 | -10/Mines | Discovered new exit (range 10) 1189 | -10/Mines | Reached level 4 1285 | -10/Mines | Assembled infested the area 1290 | -10/Mines | Assisted by a Guerilla fighting off Assembled 1389 | -10/Mines | Discovered new exit (range 11) 1478 | -10/Mines | Upgraded with Utility slot (x1) 1801 | -10/Mines | Upgraded with Propulsion slot (x1) 1991 | -10/Mines | Entered Materials 1993 | -9/Materials | Reached level 5 1999 | -9/Materials | Upgraded with Utility slot (x1) 2114 | -9/Materials | Identified exit to Mines 2114 | -9/Materials | Identified exit to Storage 2124 | -9/Materials | Reached level 6 2128 | -9/Materials | Upgraded with Weapon slot (x1) 2238 | -9/Materials | Reached level 7 2264 | -9/Materials | Upgraded with Utility slot (x1) 2421 | -9/Materials | Central database locked down 2451 | -9/Materials | Build established: Scavenger-Gunner 2536 | -9/Materials | Discovered new exit (range 7) 2553 | -9/Materials | Reached level 8 2580 | -9/Materials | Upgraded with Weapon slot (x1) 2712 | -9/Materials | Discovered new exit (range 15) 2984 | -9/Materials | Reached level 9 2991 | -9/Materials | Build established: Scavenger-Scout 3150 | -9/Materials | Discovered new exit (range 15) 3240 | -9/Materials | Repaired Broken Cmb. Airjet 3470 | -9/Materials | Upgraded with Weapon slot (x1) 3591 | -9/Materials | First assault squad dispatched 3610 | -9/Materials | Entered Mines 3657 | -9/Mines | Met a Derelict bent on vengeance 3662 | -9/Mines | Discovered new exit (range 11) 3693 | -9/Mines | Reached level 10 3743 | -9/Mines | Discovered new exit (range 16) 3772 | -9/Mines | Assisted by bots powering up and referring to "LRC-V3" 3889 | -9/Mines | A Derelict revealed a hidden shortcut to a safe place 3894 | -9/Mines | Discovered new exit (range 9) 4004 | -9/Mines | Joined a pair of Derelicts in attacking an 0b10 outpost 4188 | -9/Mines | Excavation squad dispatched 4188 | -9/Mines | A large section of the Mines collapsed 4311 | -9/Mines | Deemed a non-threat by the Exiles lab entrance 4342 | -9/Mines | Entered Exiles 4342 | -9/Exiles | Accompanied by 3 allies 4352 | -9/Exiles | Discovered new exit (range 15) 4360 | -9/Exiles | Met 8R-AWN 4369 | -9/Exiles | Met EX-HEX 4415 | -9/Exiles | Met EX-DEC 4468 | -9/Exiles | Met EX-BIN 4756 | -9/Exiles | Aligned with FarCom system 4757 | -9/Exiles | Given EX-Vault access code 4772 | -9/Exiles | Opened EX-Vault 4777 | -9/Exiles | Found Longsword +1 4793 | -9/Exiles | Warned to stay clear of 0b10 Research branches 4837 | -9/Exiles | Visited The Gauntlet 4882 | -9/Exiles | Discovered new exit (range 12) 4923 | -9/Exiles | Left Exiles lab with Longsword +1 4923 | -9/Exiles | Entered Mines 4923 | -8/Mines | Accompanied by 3 allies 4935 | -8/Mines | Discovered new exit (range 8) 4937 | -8/Mines | Reached level 11 4953 | -8/Mines | Upgraded with Utility slot (x1) 5102 | -8/Mines | Discovered new exit (range 10) 5507 | -8/Mines | Entered Materials 5507 | -8/Materials | Accompanied by 2 allies 5508 | -8/Materials | Identified exit to Factory 5509 | -8/Materials | Reached level 12 5509 | -8/Materials | Upgraded with Utility slot (x1) 5760 | -8/Materials | Discovered exit to Factory (range 15) 5943 | -8/Materials | Reached level 13 5947 | -8/Materials | Garrison activated, responded to threat 5988 | -8/Materials | Repaired Broken Cmb. Airjet 5988 | -8/Materials | Upgraded with Propulsion slot (x1) 6625 | -8/Materials | Repaired Imp. Medium Armor Plating 6707 | -8/Materials | First assault squad dispatched 6785 | -8/Materials | Discovered exit to Factory (range 15) 6862 | -8/Materials | Reached level 14 6866 | -8/Materials | Upgraded with Propulsion slot (x1) 7056 | -8/Materials | Entered Factory 7169 | -7/Factory | Discovered new exit (range 6) 7259 | -7/Factory | Discovered new exit (range 15) 7423 | -7/Factory | Reached level 15 7483 | -7/Factory | Discovered new exit (range 11) 7856 | -7/Factory | First assault squad dispatched 7876 | -7/Factory | Identified exit to Lower Caves 8135 | -7/Factory | Reached level 16 8140 | -7/Factory | Upgraded with Utility slot (x1) 8177 | -7/Factory | Destroyed 8 combat bots 8330 | -7/Factory | Discovered new exit (range 10) 8742 | -7/Factory | Fabricated S-27 Virus? 8822 | -7/Factory | Entered Lower Caves 8824 | -7/Lower Caves | Attracted the attention of an 0b10 checkpoint 8866 | -7/Lower Caves | Spotted B-75 Beast 8895 | -7/Lower Caves | Reached level 17 8895 | -7/Lower Caves | Destroyed B-75 Beast 8972 | -7/Lower Caves | Encountered a Warlord checkpoint 9131 | -7/Lower Caves | Build established: Scavenger-Mutant 9331 | -7/Lower Caves | Discovered new exit (range 6) 9399 | -7/Lower Caves | Attracted the attention of an 0b10 outpost 9458 | -7/Lower Caves | Destroyed 7 combat bots 9530 | -7/Lower Caves | Entered another Lower Caves area 9530 | -7/Lower Caves | Accompanied by 2 allies 9532 | -7/Lower Caves | Attracted the attention of an 0b10 checkpoint 9533 | -7/Lower Caves | Discovered new exit (range 16) 9977 | -7/Lower Caves | Attracted the attention of an 0b10 outpost 10105 | -7/Lower Caves | Identified exit to Zion 10196 | -7/Lower Caves | Found Alien Artifact 10587 | -7/Lower Caves | Entered Zion 10692 | -7/Zion | Discovered new exit (range 16) 10737 | -7/Zion | Learned location of Warlord (-5) 10868 | -7/Zion | Gained Derelict followers 10886 | -7/Zion | Learned Factory stockpile data 10909 | -7/Zion | Visited the Megawrench Repair Shop 10937 | -7/Zion | Discovered new exit (range 10) 11137 | -7/Zion | Learned Factory interactive machine intel 11559 | -7/Zion | Rebuked by Imprinter 11950 | -7/Zion | Entered Proximity Caves 11950 | -6/Proximity Caves | Accompanied by 3 allies 11952 | -6/Proximity Caves | Reached level 18 11974 | -6/Proximity Caves | Upgraded with Weapon slot (x1) 12225 | -6/Proximity Caves | Attracted the attention of an 0b10 outpost 12328 | -6/Proximity Caves | Identified exit to Factory 12371 | -6/Proximity Caves | Reached level 19 12460 | -6/Proximity Caves | Attracted the attention of an 0b10 checkpoint 12542 | -6/Proximity Caves | Spotted B-75 Beast 12581 | -6/Proximity Caves | Destroyed B-75 Beast 12966 | -6/Proximity Caves | Entered Factory 12968 | -6/Factory | Loaded intel: 42 interactive machine locations 13035 | -6/Factory | Discovered new exit (range 8) 13117 | -6/Factory | Discovered new exit (range 18) 13146 | -6/Factory | Reached level 20 13227 | -6/Factory | Discovered new exit (range 24) 13235 | -6/Factory | Destroyed 7 combat bots 13267 | -6/Factory | Build established: Scavenger-Scout 13316 | -6/Factory | First assault squad dispatched 13490 | -6/Factory | Fabricated L-41 Fighter? 13587 | -6/Factory | Fabricated L-41 Fighter (x3) 13655 | -6/Factory | Fabricated L-41 Fighter (x3) 13696 | -6/Factory | P-60 Hacker assimilated allied Fighter 5i 13724 | -6/Factory | Fabricated L-41 Fighter (x3) 13763 | -6/Factory | Identified Core Expander 13763 | -6/Factory | Installed Core Expander, added new Utility slot 13858 | -6/Factory | Local fabrication network quarantined 13915 | -6/Factory | Build established: Commander-Scout 13922 | -6/Factory | Identified exit to Lower Caves 13922 | -6/Factory | Identified exit to Extension 14113 | -6/Factory | Destroyed 7 combat bots 14228 | -6/Factory | Build established: Scavenger-Scout 14456 | -6/Factory | Reached level 21 14458 | -6/Factory | Upgraded with Utility slot (x1) 14545 | -6/Factory | Entered Extension 14653 | -6/Extension | Rescued a captive Derelict 14654 | -6/Extension | Rescued a captive Derelict 14656 | -6/Extension | Rescued a captive Derelict 14657 | -6/Extension | Rescued a captive Derelict 14671 | -6/Extension | Rescued a captive Derelict 14768 | -6/Extension | Spotted B-75 Beast 14790 | -6/Extension | Destroyed 9 combat bots 14823 | -6/Extension | Rescued a captive Derelict 14831 | -6/Extension | Spotted B-75 Beast 14843 | -6/Extension | Destroyed B-75 Beast 14854 | -6/Extension | Destroyed B-75 Beast 14872 | -6/Extension | Discovered new exit (range 18) 14895 | -6/Extension | First assault squad dispatched 15025 | -6/Extension | Energy Cycler disabled 15101 | -6/Extension | Destroyed 7 combat bots 15184 | -6/Extension | Discovered new exit (range 10) 15187 | -6/Extension | Discovered new exit (range 10) 15261 | -6/Extension | Reached level 22 15273 | -6/Extension | Disrupted transfer network 15315 | -6/Extension | Entered Cetus 15315 | -6/Cetus | Accompanied by 9 allies 15331 | -6/Cetus | Spotted Cetus Guard 15331 | -6/Cetus | Spotted Cetus Guard 15332 | -6/Cetus | Spotted Cetus Guard 15334 | -6/Cetus | Spotted Cetus Guard 15344 | -6/Cetus | Discovered new exit (range 38) 15350 | -6/Cetus | Destroyed Cetus Guard 15352 | -6/Cetus | Allies destroyed Cetus Guard 15356 | -6/Cetus | Allies destroyed Cetus Guard 15465 | -6/Cetus | Discovered new exit (range 16) 15479 | -6/Cetus | Spotted Cetus Guard 15479 | -6/Cetus | Spotted Cetus Guard 15479 | -6/Cetus | Spotted Cetus Guard 15481 | -6/Cetus | Spotted Cetus Guard 15482 | -6/Cetus | Discovered new exit (range 16) 15493 | -6/Cetus | Destroyed Cetus Guard 15497 | -6/Cetus | Destroyed Cetus Guard 15497 | -6/Cetus | Destroyed Cetus Guard 15500 | -6/Cetus | Destroyed Cetus Guard 15501 | -6/Cetus | Met Revision 17 15644 | -6/Cetus | Entered Archives 15644 | -6/Archives | Accompanied by 2 allies 15656 | -6/Archives | Discovered new exit (range 17) 15667 | -6/Archives | Discovered new exit (range 17) 15672 | -6/Archives | Discovered new exit (range 16) 15674 | -6/Archives | Build established: Derelict-Scout 15721 | -6/Archives | Unable to access archive contents 15760 | -6/Archives | Entered Hub_04(d) 15760 | -6/Hub_04(d) | Accompanied by 2 allies 15930 | -6/Hub_04(d) | Garrison activated, responded to threat 16110 | -6/Hub_04(d) | First assault squad dispatched 16156 | -6/Hub_04(d) | Discovered new exit (range 9) 16250 | -6/Hub_04(d) | Destroyed 12 combat bots 16337 | -6/Hub_04(d) | Network Hub disabled 16356 | -6/Hub_04(d) | Entered Factory 16358 | -5/Factory | Reached level 23 16358 | -5/Factory | Upgraded with Utility slot (x1) 16441 | -5/Factory | Discovered new exit (range 22) 16530 | -5/Factory | Build established: Scavenger-Scout 16599 | -5/Factory | Identified exit to Upper Caves 16599 | -5/Factory | Central database locked down 16949 | -5/Factory | Fabricated Force Lance (x1) 17218 | -5/Factory | Found Imp. Powered Armor 17220 | -5/Factory | Found Imp. Powered Armor 17321 | -5/Factory | Fabricated Cmb. Airjet (x2) 17539 | -5/Factory | Discovered new exit (range 17) 17635 | -5/Factory | Entered Upper Caves 17642 | -5/Upper Caves | Attracted the attention of an 0b10 outpost 17788 | -5/Upper Caves | Spotted B-75 Beast 17819 | -5/Upper Caves | Destroyed B-75 Beast 17919 | -5/Upper Caves | Build established: Scavenger-Mutant 18053 | -5/Upper Caves | Attracted the attention of an 0b10 checkpoint 18218 | -5/Upper Caves | Discovered new exit (range 11) 18321 | -5/Upper Caves | P-70 Sage assimilated allied Soldier 6a 18494 | -5/Upper Caves | Entered another Upper Caves area 18495 | -5/Upper Caves | Identified exit to Warlord 18498 | -5/Upper Caves | Discovered new exit (range 5) 18700 | -5/Upper Caves | Spotted B-75 Beast 18708 | -5/Upper Caves | Destroyed B-75 Beast 18939 | -5/Upper Caves | Reached level 24 18990 | -5/Upper Caves | Attracted the attention of an 0b10 checkpoint 19080 | -5/Upper Caves | Encountered a Warlord checkpoint 19126 | -5/Upper Caves | Learned location of Armory (-4) 19209 | -5/Upper Caves | Entered Warlord 19232 | -5/Warlord | Discovered new exit (range 23) 19235 | -5/Warlord | System corruption cleaned by Quarantine Array 19352 | -5/Warlord | Learned Research trap positions 19352 | -5/Warlord | Learned Research stockpile data 19352 | -5/Warlord | Learned 4 Access zone layouts 19413 | -5/Warlord | Visited the Vortex Lab 19418 | -5/Warlord | Found Prototype Energy Gun 19418 | -5/Warlord | Identified Vortex Rifle 19460 | -5/Warlord | Warlord's base attacked by MAIN.C 19488 | -5/Warlord | Met Warlord 19502 | -5/Warlord | Found Prototype Reactor 19502 | -5/Warlord | Identified Vortex Chain Reactor 19507 | -5/Warlord | Found Prototype Processor 19507 | -5/Warlord | Identified Exp. Targeting Computer 19515 | -5/Warlord | Found Prototype Processor 19515 | -5/Warlord | Identified Exp. Armor Integrity Analyzer 19517 | -5/Warlord | Found Prototype Device 19517 | -5/Warlord | Identified Exp. Focal Shield 19536 | -5/Warlord | Found Prototype Hackware 19672 | -5/Warlord | Warlord forces counterattacked 19773 | -5/Warlord | Spotted Executioner 19773 | -5/Warlord | Spotted Executioner 19792 | -5/Warlord | Destroyed Executioner 19811 | -5/Warlord | Found Prototype Ballistic Cannon 19813 | -5/Warlord | Identified Hvy. Autocannon 19838 | -5/Warlord | Build established: Mutant 19862 | -5/Warlord | Spotted Striker 19862 | -5/Warlord | Spotted Executioner 19873 | -5/Warlord | Destroyed Striker 19881 | -5/Warlord | Destroyed Executioner 19884 | -5/Warlord | Found Prototype Device 19884 | -5/Warlord | Identified Adv. Kinecellerator 19891 | -5/Warlord | Found Prototype Processor 19891 | -5/Warlord | Identified Exp. Core Analyzer 19957 | -5/Warlord | Entered Proximity Caves 20160 | -4/Proximity Caves | Build established: Scavenger-Mutant 20250 | -4/Proximity Caves | Spotted B-86 Titan 20267 | -4/Proximity Caves | Destroyed B-86 Titan 20304 | -4/Proximity Caves | Reached level 25 20667 | -4/Proximity Caves | Discovered new exit (range 16) 20921 | -4/Proximity Caves | Attracted the attention of an 0b10 outpost 21052 | -4/Proximity Caves | Entered Factory 21052 | -4/Factory | Accompanied by 3 allies 21254 | -4/Factory | Reached level 26 21351 | -4/Factory | Build established: Scavenger-Scout 21387 | -4/Factory | Identified Ghost Barrier 21432 | -4/Factory | Discovered new exit (range 17) 21516 | -4/Factory | Discovered new exit (range 22) 21659 | -4/Factory | Discovered new exit (range 21) 21689 | -4/Factory | Discovered new exit (range 16) 21738 | -4/Factory | Fabricated Adv. Force Field (x2) 21797 | -4/Factory | Found Prototype Slashing Weapon 21797 | -4/Factory | Identified Molecular Scythe 21829 | -4/Factory | Found Prototype Processor 21829 | -4/Factory | Identified Exp. Melee Analysis Suite 21835 | -4/Factory | Discovered new exit (range 19) 21866 | -4/Factory | Identified exit to Upper Caves 21866 | -4/Factory | Identified exit to Armory 21963 | -4/Factory | P-80 Master assimilated hostile Y-64 Sentinel 22052 | -4/Factory | First assault squad dispatched 22067 | -4/Factory | P-80 Master assimilated hostile G-67 Veteran 22359 | -4/Factory | Found Enh. Force Lance 22750 | -4/Factory | Discovered new exit (range 21) 22908 | -4/Factory | Reached level 27 23034 | -4/Factory | Destroyed 9 combat bots 23074 | -4/Factory | Fabricated Adv. Actuator Array (x1) 23207 | -4/Factory | Entered Armory 23373 | -4/Armory | Identified exit to Research 23721 | -4/Armory | Spotted B-86 Titan 23731 | -4/Armory | Allies destroyed B-86 Titan 23795 | -4/Armory | Destroyed 10 combat bots 24166 | -4/Armory | Reached level 28 24168 | -4/Armory | Found Gamma Bomb Array 24290 | -4/Armory | Fabricated Cld. Antigrav System (x1) 24397 | -4/Armory | Fabricated Cld. Antigrav System (x1) 24502 | -4/Armory | Fabricated Cld. Antigrav System? 24826 | -4/Armory | Discovered new exit (range 3) 24981 | -4/Armory | Fabricated E-15 Imp? 25125 | -4/Armory | Identified exit to Lab 25207 | -4/Armory | First assault squad dispatched 25219 | -4/Armory | Entered Lab 25219 | -4/Lab | Discovered exit to Research (range 9) 25225 | -4/Lab | Unable to decrypt terminal 25226 | -4/Lab | Unable to decrypt terminal 25234 | -4/Lab | Detected for breach 25237 | -4/Lab | Gained access to the hidden lab's interior 25240 | -4/Lab | Found Alien Artifact 25240 | -4/Lab | Identified Core Reset Matrix 25240 | -4/Lab | Used Core Reset Matrix 25243 | -4/Lab | Confronted by A5 25244 | -4/Lab | Sensed 3 artifacts in vicinity 25248 | -4/Lab | Discovered exit to Research (range 9) 25255 | -4/Lab | Destroyed A5 25272 | -4/Lab | Found Prototype Protection 25272 | -4/Lab | Identified Med. Regenerative Plating 25297 | -4/Lab | Found Prototype Hackware 25297 | -4/Lab | Identified Exp. System Shield 25347 | -4/Lab | Found Core Expander 25354 | -4/Lab | Found Integrated Reactor 25354 | -4/Lab | Installed Integrated Reactor, increased core energy generation (+2%) 25374 | -4/Lab | Found Prototype Special Weapon 25374 | -4/Lab | Identified Gui. Remote Datajack 25389 | -4/Lab | Found Prototype Energy Gun 25389 | -4/Lab | Identified Hyp. EM Gauss Rifle 25392 | -4/Lab | Found Hyp. EM Gauss Rifle 25400 | -4/Lab | Found Prototype Protection 25400 | -4/Lab | Identified Exp. Powered Armor 25425 | -4/Lab | Unable to decrypt terminal 25444 | -4/Lab | Unable to decrypt terminal 25473 | -4/Lab | Unable to decrypt terminal 25556 | -4/Lab | Found Prototype Hackware 25569 | -4/Lab | Disabled Active System Cloaker 25576 | -4/Lab | Build established: Alien-Mutant 25590 | -4/Lab | MAIN.C forces arrive to investigate 25611 | -4/Lab | Unable to decrypt terminal 25645 | -4/Lab | Found Prototype Hackware 25645 | -4/Lab | Identified Exp. Hacking Suite 25662 | -4/Lab | Entered Research 25664 | -3/Research | Reached level 29 25713 | -3/Research | Identified Deep Network Scanner 25933 | -3/Research | Build established: Hacker-Scout 25980 | -3/Research | Found Unknown Device 25980 | -3/Research | Identified Antimissile System 26280 | -3/Research | Intercept squad dispatched 26293 | -3/Research | Spotted Tracker 26293 | -3/Research | Spotted Tracker 26296 | -3/Research | Destroyed Tracker 26301 | -3/Research | Destroyed Tracker 26309 | -3/Research | Found Prototype Device 26309 | -3/Research | Identified Exp. Phase Shifter 26317 | -3/Research | Found Prototype Energy Gun 26317 | -3/Research | Identified Immobilizer 26337 | -3/Research | Spotted Combat Programmer 26339 | -3/Research | Central database locked down 26341 | -3/Research | Spotted Combat Programmer 26347 | -3/Research | Destroyed Combat Programmer 26354 | -3/Research | Destroyed Combat Programmer 26430 | -3/Research | Discovered new exit (range 21) 26502 | -3/Research | Destroyed 10 combat bots 26539 | -3/Research | Identified exit to Quarantine 26662 | -3/Research | First assault squad dispatched 26665 | -3/Research | Fabricated S-43 Plague (x4) 26699 | -3/Research | Fabricated S-43 Plague (x4) 26709 | -3/Research | Intercept squad dispatched 26710 | -3/Research | Reached level 30 26715 | -3/Research | Spotted Tracker 26717 | -3/Research | Spotted Tracker 26718 | -3/Research | Spotted Tracker 26718 | -3/Research | Destroyed Tracker 26721 | -3/Research | Destroyed Tracker 26726 | -3/Research | Destroyed Tracker 26733 | -3/Research | Fabricated S-43 Plague? 26754 | -3/Research | Spotted Combat Programmer 26755 | -3/Research | Spotted Combat Programmer 26761 | -3/Research | Destroyed Combat Programmer 26771 | -3/Research | Combat Programmer assimilated allied Plague 8g 26777 | -3/Research | Destroyed Combat Programmer 26781 | -3/Research | Spotted Combat Programmer 26785 | -3/Research | Destroyed Combat Programmer 26802 | -3/Research | Intercept squad dispatched 26807 | -3/Research | Spotted Tracker 26808 | -3/Research | Spotted Tracker 26809 | -3/Research | Spotted Tracker 26810 | -3/Research | Destroyed 7 combat bots 26814 | -3/Research | Destroyed Tracker 26814 | -3/Research | Destroyed Tracker 26826 | -3/Research | Destroyed Tracker 26837 | -3/Research | Spotted Combat Programmer 26850 | -3/Research | Spotted Combat Programmer 26863 | -3/Research | Destroyed Combat Programmer 26871 | -3/Research | Destroyed Combat Programmer 26872 | -3/Research | Spotted Combat Programmer 26877 | -3/Research | Destroyed Combat Programmer 26998 | -3/Research | Spotted B-86 Titan 27097 | -3/Research | Identified exit to Research 27112 | -3/Research | Intercept squad dispatched 27133 | -3/Research | Spotted Tracker 27133 | -3/Research | Spotted Tracker 27134 | -3/Research | Spotted Tracker 27134 | -3/Research | Destroyed Tracker 27135 | -3/Research | Spotted Tracker 27136 | -3/Research | Spotted Tracker 27138 | -3/Research | Destroyed Tracker 27138 | -3/Research | Destroyed Tracker 27142 | -3/Research | Destroyed Tracker 27146 | -3/Research | Destroyed Tracker 27172 | -3/Research | Spotted B-86 Titan 27177 | -3/Research | Destroyed B-86 Titan 27197 | -3/Research | Spotted Combat Programmer 27198 | -3/Research | Spotted Combat Programmer 27201 | -3/Research | Entered another Research area 27201 | -2/Research | Accompanied by 2 allies 27201 | -2/Research | Warlord forces began assault on 0b10 27203 | -2/Research | Reached level 31 27296 | -2/Research | Destroyed 7 combat bots 27311 | -2/Research | Research machine network offline 27341 | -2/Research | Spotted B-90 Cyclops 27375 | -2/Research | Reached level 32 27380 | -2/Research | Spotted Tracker 27380 | -2/Research | Spotted Tracker 27382 | -2/Research | High security lockdown imminent 27386 | -2/Research | Destroyed Tracker 27388 | -2/Research | Destroyed Tracker 27443 | -2/Research | Spotted Combat Programmer 27455 | -2/Research | Destroyed Combat Programmer 27462 | -2/Research | High security lockdown engaged 27518 | -2/Research | Discovered new exit (range 8) 27531 | -2/Research | Entered Access 27533 | -1/Access | Reached level 33 27685 | -1/Access | Identified exit to Surface 27707 | -1/Access | Discovered new exit (range 21) 27722 | -1/Access | Spotted B-99 Colossus 27722 | -1/Access | Spotted B-99 Colossus 27740 | -1/Access | Identified exit to Command 27746 | -1/Access | Entered Command 27748 | -1/Command | Reached level 34 27749 | -1/Command | Spotted B-99 Colossus 27778 | -1/Command | Disengaged cave seal 27794 | -1/Command | Destroyed B-99 Colossus 27841 | -1/Command | Reached level 35 27895 | -1/Command | Disengaged cave seal 27895 | -1/Command | Assembled emerged from the dark tunnel 27953 | -1/Command | Spotted B-99 Colossus 27953 | -1/Command | Spotted Executioner 27954 | -1/Command | Discovered exit to Surface (range 5) 27958 | -1/Command | Spotted B-99 Colossus 27959 | -1/Command | Spotted Executioner 27961 | -1/Command | Spotted Executioner 27962 | -1/Command | Spotted Striker 28001 | -1/Command | Spotted B-99 Colossus 28022 | -1/Command | Core integrity fell below 50% 28023 | -1/Command | Destroyed Striker 28038 | -1/Command | First assault squad dispatched 28048 | -1/Command | Emitted hypermatrix ping 28053 | -1/Command | Assembled emerged from beneath the floor 28120 | -1/Command | Assembled emerged from the dark tunnel 28134 | -1/Command | Reached level 36 28200 | -1/Command | Destroyed 22 combat bots 28397 | -1/Command | Destroyed 17 combat bots 28458 | -1/Command | Destroyed 7 combat bots 28481 | -1/Command | Assembled emerged from beneath the floor 28496 | -1/Command | Assembled emerged from beneath the floor 28510 | -1/Command | Found Prototype Device 28510 | -1/Command | Identified Adv. Kinecellerator 28517 | -1/Command | Found Prototype Processor 28517 | -1/Command | Identified Exp. Targeting Computer 28657 | -1/Command | High security lockdown imminent 28678 | -1/Command | Destroyed 8 combat bots 28709 | -1/Command | Spotted M Guard 28709 | -1/Command | Spotted M Guard 28709 | -1/Command | Spotted Combat Programmer 28720 | -1/Command | Spotted Combat Programmer 28737 | -1/Command | High security lockdown engaged 28775 | -1/Command | Found Unknown Protection 28775 | -1/Command | Identified Hvy. Reactive Plating 28832 | -1/Command | Reached level 37 28867 | -1/Command | Destroyed B-99 Colossus 28893 | -1/Command | Destroyed 14 combat bots 28907 | -1/Command | Spotted Executioner 28907 | -1/Command | Spotted Executioner 28907 | -1/Command | Spotted Executioner 28941 | -1/Command | Destroyed Executioner 28953 | -1/Command | Destroyed Executioner 28955 | -1/Command | Destroyed Executioner 28965 | -1/Command | Spotted Investigator 28975 | -1/Command | Crushed by falling debris 28985 | -1/Command | Scanned by Researcher 28991 | -1/Command | Destroyed Investigator 29030 | -1/Command | Destroyed 15 combat bots 29087 | -1/Command | Spotted Executioner 29087 | -1/Command | Spotted Executioner 29090 | -1/Command | Spotted Striker 29093 | -1/Command | Destroyed Striker 29099 | -1/Command | Destroyed Executioner 29101 | -1/Command | Destroyed Executioner 29108 | -1/Command | Spotted Striker 29110 | -1/Command | Spotted Striker 29114 | -1/Command | Destroyed Striker 29131 | -1/Command | Destroyed Striker 29169 | -1/Command | Destroyed 20 combat bots 29231 | -1/Command | Found Prototype Launcher 29231 | -1/Command | Identified Containment Facilitator 29522 | -1/Command | Assembled emerged from beneath the floor 29673 | -1/Command | Destroyed Combat Programmer 29677 | -1/Command | Destroyed Combat Programmer 29702 | -1/Command | Destroyed M Guard 29707 | -1/Command | Destroyed M Guard 29707 | -1/Command | Destroyed all MAIN.C guards 29719 | -1/Command | Found Prototype Device 29719 | -1/Command | Identified Thermal Barrier 29722 | -1/Command | Found Prototype Device 29722 | -1/Command | Identified AEGIS Remote Shield 29737 | -1/Command | Found Zero-point Reactor 29739 | -1/Command | Found Zero-point Reactor 29745 | -1/Command | Found Prototype Launcher 29745 | -1/Command | Identified Adv. Micro-nuke Launcher 29751 | -1/Command | Found Prototype Protection 29751 | -1/Command | Identified Hvy. Regenerative Plating 29811 | -1/Command | Assembled emerged from beneath the floor 30276 | -1/Command | Met MAIN.C 30307 | -1/Command | Reached level 38 30307 | -1/Command | Destroyed MAIN.C Shell 30308 | -1/Command | MAIN.C activated Command garrisons 30310 | -1/Command | 0b10 Conduit disabled 30335 | -1/Command | Destroyed MAIN.C 30441 | -1/Command | Build established: Scavenger-Scout 30459 | -1/Command | Spotted Alpha 7 30459 | -1/Command | Spotted Alpha 7 30469 | -1/Command | Spotted Executioner 30478 | -1/Command | Destroyed Executioner 30483 | -1/Command | Destroyed Alpha 7 30490 | -1/Command | Assembled emerged from beneath the floor 30491 | -1/Command | Allies destroyed Alpha 7 30887 | -1/Command | Discovered exit to Surface (range 18) 31264 | -1/Command | Phase Generator disabled 31477 | -1/Command | Assembled emerged from beneath the floor 31586 | *** | Heading to fleet! Last Messages --------------- 31573_ as-41028 triggered Stasis Trap. 31573_ A bubble of rippling energy engulfs the area. 31573_ Field strength at 93. 31574_ Field strength at 86. 31575_ Field strength at 79. 31576_ Field strength at 72. 31577_ Field strength at 65. 31578_ Field strength at 58. 31579_ Field strength at 51. 31580_ Field strength at 44. 31581_ Field strength at 37. 31582_ Field strength at 30. 31583_ Field strength at 23. 31584_ Field strength at 16. 31585_ Field strength at 9. 31586_ Field strength at 2. [Achievement: Collector] [Achievement: Home At Last?] [Achievement: Victory By Combat] [Achievement: Death Machine] Map ----- +----------------------------------------------------+ | = =# #######?##?##?##???# """ #?? | | %+ ###########?#?#?#??#######?? | | ### # ##########???#???#?????????? | | ###%# ] ############???#???????????? | | ### # ##############?#??#????????? | | ###+###### ################?##########???????????? | | ## %"""" ## #############?#####?#????????????? | | ## ""R"" ## ###?#########?###?##?????????????? | | ##= " ="" ## #################?###????????????? | | ##*[!%= ! ## ########?#########?####??????????? | | ## * ## #################?#?##???#?#?????? | | ## ## #########################????????? | | ## + ########################?#???????? | | #######+################################?###?????? | | ###### #############################?####???????? | | + / #########?#####?##???#?#???#????? | | # # ##############?####?#?###?#?????? | | "" # # "" " ##############?#?##?###?#?????? | | "" # # """" #####;#############?######?#??? | | "" # # "" ; ]*[%[#####?##??##??#??? | | "" # # "; !!*!#############??#?? | | # # ""# ^^ !!! # # # ;;##?#?#?? | | # # | ### ^ ! ]! ^ ^ ^^ ######## | | ! # # "" ### a !^*%= * ; | | + # """ ### ^ a"aaa ! %^ ; !!* | | [%!# + """" ##; ^ @" ^ ^= % ! ; !%!! | | [= # # "" ##; aa % ^ ^^ / + [ [ | | [=![ # # ##; % % a ^ ^^ ^ ^^^;;; ### | | ## ### # ##;% ^ ; % ; ; ##;# | | [*= + ##; ;#;##;;#### | | =* # ;; ########### "" | | ######+###### /;;##; ;; ;################### """ | | ### ### ##########################?## "R | | ### ! ### ############################# """ | | ### "" ### ################### !!## """ | | ### """" ### ###############??## !!## | | ### """" ### ################### = ## | | ### "" ### ################### ! #### ### | | ### %! + #########= = ####/####### | | ! ############ # ##???# | | ### ############# """"" # "" ###### | | ########+############### ""T" + | | = ###### ############### # ]########### | | ! ###### ###############[ # #??????# | | ###### ##########?#### !=#######??????# | | ###### ############### ! ! !!###?#????????# | | / ##########################?#?????????# | | ## ############?########?##?######??????????# | | ################################?##???????????#### | | | +----------------------------------------------------+ Best States ------------- Heat Dissipation 94 Energy Generation 108 Energy Capacity 2000 Matter Stores 300 Matter Capacity 300 Sight Range 27 Robot Scan Range 20 Terrain Scan Range 24 Terrain Scan Density 910 Power Amplification 40 Armor Coverage 1000 Resistance: KI 40 Resistance: TH 50 Resistance: EX 20 Utility Shielding 66 Weapon Shielding 33 Melee Speed Boost 50 Phase Shifting 20 Evasion (%) 93 Targeting Accuracy 11 Melee Accuracy 24 Core Analysis 15 Armor Integrity Analysis 90 Recoil Reduction 1 Particle Charging 20 Stasis Canceling 2 Offensive Hacking 35 Defensive Hacking 20 Item Schematics ----------------- Imp. System Restoration Module | -3/Research | Scanalyzed Exp. Energy Well | -3/Research | Scanalyzed Cmb. Linear Gravjet | -3/Research | Hacked Adv. Force Booster | -2/Research | Hacked Robot Schematics ------------------ S-43 Plague | -3/Research | Hacked Fabricated ------------ S-27 Virus | x4 | -7/Factory | Preloaded L-41 Fighter | x3 | -6/Factory | Preloaded L-41 Fighter | x3 | -6/Factory | Preloaded L-41 Fighter | x3 | -6/Factory | Preloaded L-41 Fighter | x3 | -6/Factory | Preloaded Force Lance | x1 | -5/Factory Cmb. Airjet | x2 | -5/Factory Adv. Force Field | x2 | -4/Factory | Preloaded Adv. Actuator Array | x1 | -4/Factory Cld. Antigrav System | x1 | -4/Armory Cld. Antigrav System | x1 | -4/Armory Cld. Antigrav System | x1 | -4/Armory E-15 Imp | x2 | -4/Armory S-43 Plague | x4 | -3/Research S-43 Plague | x4 | -3/Research S-43 Plague | x4 | -3/Research Alien Tech Used ----------------- Core Expander Core Reset Matrix Integrated Reactor Achievements -------------- Anyone Home? Collector Corridor Of Doom Death Machine Home At Last? Meet Your Maker Victory By Combat void main() Challenges ------------ None RPGLIKE | -11 -10 -10 -9 -9 -9 -8 -8 -7 -7 -7 -7 -6 -6 -6 -6 -6 -6 -5 -5 -5 -5 -4 -4 -4 -4 -3 -2 -1 -1 --------- Run | Scr Mat Min Mat Min Exi Min Mat Fac Low Low Zio Pro Fac Ext Cet Arc Hub Fac Upp Upp War Pro Fac Arm Lab Res Res Acc Com Levels Raised 37 | . 2 1 5 1 . 1 3 2 1 . . 2 2 1 . . . 1 . 1 . 1 2 1 . 2 2 1 5 XP Earned 59206 | 3000 3844 2000 7290 1152 117 1916 3357 4084 609 554 152 2509 2454 1544 250 105 613 1117 558 381 659 1241 2821 1461 735 3024 2616 1985 7058 XP Spent 58390 | 1500 3420 2200 7370 . . 2300 5685 2975 1200 . . 1700 3950 200 . . . 3500 . 1500 . 1495 2750 1735 . 2900 2950 . 9060 Upgrades 111 | 3 8 2 10 . . 1 10 2 4 . . 1 2 1 . . . 1 . 5 . 5 3 7 . 13 5 . 28 Power Slot 1 | . 1 . . . . . . . . . . . . . . . . . . . . . . . . . . . . Propulsion Slot 4 | 1 . 1 . . . . 2 . . . . . . . . . . . . . . . . . . . . . . Utility Slot 11 | 1 2 1 2 . . 1 1 1 . . . . 1 . . . . 1 . . . . . . . . . . . Weapon Slot 5 | 1 . . 3 . . . . . . . . 1 . . . . . . . . . . . . . . . . . Core Integrity 30 | . . . . . . . 3 . . . . . . . . . . . . 2 . 1 . 1 . 10 . . 13 Heat Dissipation 10 | . . . 4 . . . 2 . . . . . . . . . . . . . . 1 . . . . . . 3 Energy Generation 3 | . . . . . . . . . 1 . . . . . . . . . . . . 1 . . . 1 . . . Mass Support 3 | . . . . . . . 1 . . . . . . . . . . . . . . 1 1 . . . . . . Inventory Capacity 5 | . 2 . . . . . . . . . . . 1 . . . . . . 1 . . 1 . . . . . . Sight Range 4 | . . . . . . . 1 . . . . . . . . . . . . . . . . . . . . . 3 Sensor Range 5 | . . . 1 . . . . 1 . . . . . . . . . . . . . 1 . . . . . . 2 Terrain Scan Density 9 | . 3 . . . . . . . . . . . . . . . . . . 2 . . . . . . . . 4 Melee Accuracy 7 | . . . . . . . . . 3 . . . . . . . . . . . . . . . . . 1 . 3 Hack Attack % 4 | . . . . . . . . . . . . . . 1 . . . . . . . . 1 . . . 2 . . Hack Defense % 2 | . . . . . . . . . . . . . . . . . . . . . . . . . . 2 . . . TH Resistance % 4 | . . . . . . . . . . . . . . . . . . . . . . . . 3 . . 1 . . EX Resistance % 4 | . . . . . . . . . . . . . . . . . . . . . . . . 3 . . 1 . . Protomatter Created 12034 | . 354 161 475 178 . 91 484 335 257 287 36 446 396 509 194 275 358 303 242 217 416 423 653 739 71 1265 215 141 2513 Integrity Restored 23310 | . 917 371 1195 561 . 273 802 614 758 678 31 712 1045 1315 853 533 562 293 467 313 418 667 624 1269 197 1614 395 304 5529 Core 15726 | . 758 322 837 436 . 187 641 387 633 179 18 429 702 668 638 194 304 150 357 201 202 426 319 590 70 1204 220 187 4467 Parts 7584 | . 159 49 358 125 . 86 161 227 125 499 13 283 343 647 215 339 258 143 110 112 216 241 305 679 127 410 175 117 1062 Protomatter Decayed 12131 | . 43 167 66 63 . 20 242 164 . 141 25 298 111 595 61 . 343 275 57 137 914 186 370 755 1 762 831 200 5304 Game ------ Seed FocalPropulsionMatrix Manual? 0 Play Time 10:07:42 Cumulative 204.6 hours Start 2020.04.15 @ 02:26:25 End 2020.04.16 @ 04:17:58 Sessions 3 Manual Loads 0 Difficulty Rogue Special Mode Winter2019/RPGLIKE Game No. 68 Rogue 68 Adventurer 0 Explorer 0 Win Type 2 Total 2 Types 1/0/1/0/0/0/0 Lore% 67 Gallery% 78 Achievement% 67 Wizard Run 0 Options --------- ASCII 1 Keyboard 1 Movement Numpad Keybinds 0 Fullscreen 1 Font 16/SmallcapsGlow Map View 75x55 Tactical HUD 1 Map Filters NONE Filters NONE Steam 1 RUN: 959b8005-9d90-4015-8b0c-a6fc26335d8a